{"text_format":"1","workbook":"xlsx","n_sheets":4,"sheets":["Cedula6B","Enviar","Carreras","Prompt"],"not_rendered":{"charts":0,"images":4,"macros":1,"external_links":0,"defined_names":5,"comments":0,"pivot_tables":0},"unopened":[],"bounds":{"document_bytes":16777216,"sheet_cells":100000,"rows_first":2000,"rows_last":500,"rows_between":2000,"halvings":0,"cell_chars":16384,"cell_head_chars":4096},"cells_cut":0,"cells_raw":0,"read":"whole","date_system":"1900"}

{"sheet":"Cedula6B","index":0,"n_rows":450,"n_cols":42,"rows_kept":450,"cut":false,"hidden":true,"merged":[[216,3,218,4],[305,10,306,11],[396,18,396,21],[397,18,397,21],[395,22,395,24],[396,22,396,24],[397,22,397,24],[398,22,398,24],[158,14,158,16],[395,18,395,21],[396,14,396,17],[397,14,397,17],[218,11,218,12],[216,5,216,14],[218,13,218,14],[367,10,368,11],[369,5,369,8],[290,10,290,16],[255,5,255,6],[255,7,255,9],[275,4,275,8],[289,4,289,9],[290,4,290,9],[343,5,343,8],[218,23,218,24],[218,17,218,18],[184,14,184,16],[217,15,218,16],[198,14,198,16],[189,14,189,16],[190,14,190,16],[206,14,206,16],[205,14,205,16],[217,7,217,14],[218,7,218,8],[207,14,207,16],[208,14,208,16],[216,15,216,24],[400,22,400,24],[398,14,398,17],[399,14,399,17],[268,14,268,16],[269,14,269,16],[368,24,368,25],[367,12,367,17],[367,18,367,21],[367,22,367,25],[341,22,341,25],[275,17,275,22],[270,14,270,16],[271,14,271,16],[276,17,276,23],[282,10,282,16],[282,17,282,23],[283,10,283,16],[283,17,283,23],[280,17,280,23],[281,10,281,16],[281,17,281,23],[275,10,275,15],[276,10,276,16],[396,10,396,13],[407,3,407,9],[407,10,407,14],[407,15,407,20],[407,21,407,24],[406,21,406,24],[404,10,404,14],[404,21,404,24],[405,10,405,14],[405,15,405,20],[405,21,405,24],[404,3,404,9],[405,3,405,9],[404,15,404,20],[406,10,406,14],[406,15,406,20],[406,3,406,9],[397,10,397,13],[398,10,398,13],[399,10,399,13],[400,10,400,13],[400,4,400,9],[400,14,400,17],[400,18,400,21],[398,18,398,21],[399,18,399,21],[1,22,3,24],[12,22,12,23],[38,23,38,24],[16,7,16,15],[74,7,74,9],[26,3,28,6],[70,3,72,4],[12,7,12,9],[97,11,97,12],[27,9,27,10],[16,19,16,23],[14,7,14,23],[26,7,27,8],[70,5,71,9],[73,5,73,6],[74,5,74,6],[73,7,73,9],[49,11,49,12],[4,8,4,21],[1,8,1,19],[2,8,2,19],[3,8,3,19],[38,11,38,12],[27,15,27,16],[149,17,149,24],[150,21,150,22],[109,17,109,18],[79,3,80,3],[79,17,79,18],[37,7,38,8],[38,9,38,10],[37,3,39,6],[97,19,97,20],[79,19,79,20],[150,17,150,18],[150,23,150,24],[49,23,49,24],[109,19,109,20],[120,19,120,20],[48,7,49,8],[49,9,49,10],[72,5,72,6],[143,5,143,6],[84,14,84,16],[150,19,150,20],[149,3,149,13],[146,5,146,6],[141,3,143,4],[49,25,49,26],[79,4,80,13],[78,3,78,13],[97,13,97,14],[97,15,97,16],[97,17,97,18],[38,19,38,20],[49,13,49,14],[75,5,75,6],[75,7,75,9],[89,14,89,16],[82,14,82,16],[83,14,83,16],[86,14,86,16],[96,3,98,6],[96,7,97,8],[49,27,49,28],[90,14,90,16],[91,14,91,16],[38,17,38,18],[38,15,38,16],[38,21,38,22],[27,19,27,20],[79,21,79,22],[79,23,79,24],[27,27,27,28],[49,15,49,16],[78,17,78,24],[49,21,49,22],[49,17,49,18],[49,19,49,20],[87,14,87,16],[88,14,88,16],[38,13,38,14],[27,13,27,14],[78,14,80,16],[27,21,27,22],[85,14,85,16],[27,17,27,18],[38,27,38,28],[156,14,156,16],[157,14,157,16],[145,5,145,6],[141,5,142,9],[144,5,144,6],[144,7,144,9],[176,14,176,16],[146,7,146,9],[150,4,151,13],[162,14,162,16],[169,14,169,16],[170,14,170,16],[166,14,166,16],[167,14,167,16],[168,14,168,16],[153,14,153,16],[163,14,163,16],[164,14,164,16],[165,14,165,16],[154,14,154,16],[173,14,173,16],[159,14,159,16],[160,14,160,16],[161,14,161,16],[182,14,182,16],[185,14,185,16],[186,14,186,16],[187,14,187,16],[188,14,188,16],[204,14,204,16],[195,14,195,16],[196,14,196,16],[197,14,197,16],[191,14,191,16],[192,14,192,16],[193,14,193,16],[194,14,194,16],[199,14,199,16],[200,14,200,16],[183,14,183,16],[27,11,27,12],[48,3,50,6],[120,17,120,18],[119,3,121,6],[119,7,120,8],[120,9,120,10],[120,11,120,12],[108,7,109,8],[97,9,97,10],[109,15,109,16],[108,3,110,6],[109,9,109,10],[109,11,109,12],[120,13,120,14],[120,15,120,16],[109,13,109,14],[145,7,145,9],[155,14,155,16],[399,4,399,9],[398,4,398,9],[396,4,396,9],[397,4,397,9],[395,14,395,17],[290,17,290,23],[285,17,285,23],[288,10,288,16],[288,17,288,23],[286,17,286,23],[287,17,287,23],[289,17,289,23],[341,12,341,17],[307,5,307,8],[298,6,298,7],[286,10,286,16],[287,4,287,9],[287,10,287,16],[285,4,285,9],[367,3,368,9],[395,4,395,9],[399,22,399,24],[341,3,342,9],[217,17,217,24],[367,26,368,27],[368,22,368,23],[0,22,0,24],[27,23,27,24],[27,25,27,26],[38,25,38,26],[252,5,252,6],[228,3,230,6],[228,7,229,8],[229,9,229,10],[259,21,259,22],[217,5,218,6],[250,5,251,9],[259,17,259,18],[259,19,259,20],[229,15,229,16],[250,3,252,4],[258,14,260,16],[258,17,258,24],[341,26,342,27],[280,10,280,16],[177,14,177,16],[305,36,306,37],[306,12,306,13],[306,14,306,15],[306,16,306,17],[306,18,306,19],[306,20,306,21],[306,22,306,23],[306,24,306,25],[305,22,305,25],[305,26,306,27],[305,28,306,29],[305,30,306,31],[305,32,306,33],[305,34,306,35],[305,12,305,17],[305,18,305,21],[341,28,342,29],[341,30,342,31],[341,32,342,33],[259,3,260,3],[178,14,178,16],[179,14,179,16],[395,10,395,13],[150,3,151,3],[149,14,151,16],[180,14,180,16],[181,14,181,16],[218,9,218,10],[253,7,253,9],[171,14,171,16],[172,14,172,16],[209,14,209,16],[210,14,210,16],[201,14,201,16],[202,14,202,16],[203,14,203,16],[174,14,174,16],[175,14,175,16],[211,14,211,16],[367,28,368,29],[367,30,368,31],[367,32,368,33],[367,34,368,35],[284,17,284,23],[277,17,277,23],[277,10,277,16],[278,10,278,16],[367,36,368,37],[368,12,368,13],[368,14,368,15],[368,16,368,17],[368,18,368,19],[368,20,368,21],[341,34,342,35],[341,36,342,37],[342,12,342,13],[342,14,342,15],[342,16,342,17],[342,18,342,19],[342,20,342,21],[342,22,342,23],[342,24,342,25],[341,18,341,21],[279,17,279,23],[289,10,289,16],[285,10,285,16],[284,10,284,16],[280,4,280,9],[305,3,306,9],[299,6,299,7],[282,4,282,9],[296,6,296,7],[297,6,297,7],[294,6,295,7],[288,4,288,9],[286,4,286,9],[301,6,301,7],[300,6,300,7],[283,4,283,9],[276,4,276,9],[277,4,277,9],[278,4,278,9],[284,4,284,9],[281,4,281,9],[218,19,218,20],[218,21,218,22],[278,17,278,23],[259,23,259,24],[253,5,253,6],[229,13,229,14],[258,3,258,13],[259,4,260,13],[254,5,254,6],[254,7,254,9],[266,14,266,16],[262,14,262,16],[263,14,263,16],[264,14,264,16],[279,4,279,9],[279,10,279,16],[265,14,265,16],[229,11,229,12],[267,14,267,16]]}
[]
[null,null,null,null,null,null,null,null,"CENSO EDUCATIVO 2023",null,null,null,null,null,null,null,null,null,null,null,null,null,"6B"]
[null,null,null,null,null,null,null,null,"EDUCACIÓN SUPERIOR"]
[null,null,null,null,null,null,null,null,"TECNOLÓGICA"]
[null,null,null,"Versión :",3]
[null,null,null,"INSTRUCCIONES DEL FORMATO ELECTRÓNICO "]
[]
[]
[]
[null,null,null,"IDENTIFICACIÓN DEL SERVICIO EDUCATIVO"]
[]
[]
[null,null,null,"1. CÓDIGO MODULAR :",null,null,null,null,null,null,null,null,null,null,null,null,null,"2. CÓDIGO DE LOCAL EDUCATIVO :"]
[]
[null,null,null,"3. NOMBRE DEL SERVICIO :",null,null,null,""]
[]
[null,null,null,"4. DISTRITO :",null,null,null,"",null,null,null,null,null,null,null,null,null,"LOCALIDAD :"]
[]
[null,null,null,"TIPO DE INSTITUCIÓN EDUCATIVA : ",null,null,null,null,null,null,"Instituto de Educación Superior Tecnólogico",null,null,null,null,null,null,"","Escuela de Educaciuón Superior Tecnólogica"]
[]
[]
[]
[null,null,null,"100. RESULTADO DEL EJERCICIO EDUCATIVO"]
[null,null,null,"Complete y remita esta sección entre diciembre de 2023 y enero de 2024."]
[null,null,null,"(PARA PROGRAMAS DE ESTUDIOS DE CUATRO A MÁS AÑOS)"]
[null,null,null,"101. MATRICULADOS, APROBADOS, DESAPROBADOS, RETIRADOS Y FALLECIDOS EN EL SEMESTRE 2023-I, EN PROGRAMAS DE ESTUDIOS DE CUATRO AÑOS, POR CICLO Y SEXO    (Sumar todos los turnos)"]
[null,null,null,"SITUACIÓN",null,null,null,"TOTAL",null,"CICLO Y SEXO"]
[null,null,null,null,null,null,null,null,null,"I",null,"II",null,"III",null,"IV",null,"V",null,"VI",null,"VII",null,"VIII",null,"IX",null,"X"]
[null,null,null,null,null,null,null,"H","M","H","M","H","M","H","M","H","M","H","M","H","M","H","M","H","M","H","M","H","M"]
["00",null,null,"Matriculados",null,null,"1/",{"$f":"SUM(H31:H34)","v":0},{"$f":"SUM(I31:I34)","v":0},{"$f":"SUM(J31:J34)","v":0},{"$f":"SUM(K31:K34)","v":0},{"$f":"SUM(L31:L34)","v":0},0,0,0,0,0,0,0,0,0,0,0,{"$f":"SUM(X31:X34)","v":0},0,0,0,{"$f":"SUM(AB31:AB34)","v":0},{"$f":"SUM(AC31:AC34)","v":0}]
["01",null,null,"Aprobados",null,null,null,{"$f":"SUM(J31,L31,N31,P31,R31,T31,V31,X31,Z31,AB31)","v":0},0]
["02",null,null,"Desaprobados",null,null,null,0,0]
["03",null,null,"Retirados",null,null,null,0,0]
["04",null,null,"Fallecidos",null,null,null,0,0]
[null,null,null,"1/ La matrícula debe ser la suma de todos los rubros."]
[]
[null,null,null,"102. MATRICULADOS, APROBADOS, DESAPROBADOS, RETIRADOS Y FALLECIDOS EN EL SEMESTRE 2023-II, EN PROGRAMAS DE ESTUDIOS DE CUATRO AÑOS, POR CICLO Y SEXO    (Sumar todos los turnos)"]
[null,null,null,"SITUACIÓN",null,null,null,"TOTAL",null,"CICLO Y SEXO"]
[null,null,null,null,null,null,null,null,null,"I",null,"II",null,"III",null,"IV",null,"V",null,"VI",null,"VII",null,"VIII",null,"IX",null,"X"]
[null,null,null,null,null,null,null,"H","M","H","M","H","M","H","M","H","M","H","M","H","M","H","M","H","M","H","M","H","M"]
["00",null,null,"Matriculados",null,null,"1/",{"$f":"SUM(H42:H45)","v":0},{"$f":"SUM(I42:I45)","v":0},{"$f":"SUM(J42:J45)","v":0},{"$f":"SUM(K42:K45)","v":0},{"$f":"SUM(L42:L45)","v":0},0,0,0,0,0,0,0,0,0,0,0,0,0,0,0,{"$f":"SUM(AB42:AB45)","v":0},{"$f":"SUM(AC42:AC45)","v":0}]
["01",null,null,"Aprobados",null,null,null,{"$f":"SUM(J42,L42,N42,P42,R42,T42,V42,X42,Z42,AB42)","v":0},{"$f":"SUM(K42,M42,O42,Q42,S42,U42,W42,Y42,AA42,AC42)","v":0}]
["02",null,null,"Desaprobados",null,null,null,0,0]
["03",null,null,"Retirados",null,null,null,0,0]
["04",null,null,"Fallecidos",null,null,null,{"$f":"SUM(J45,L45,N45,P45,R45,T45,V45,X45+Z45+AB45)","v":0},{"$f":"SUM(K45,M45,O45,Q45,S45,U45,W45,Y45+AA45+AC45)","v":0}]
[null,null,null,"1/ La matrícula debe ser la suma de todos los rubros.",null,null,null,null,null,"I","II","III","IV","I","VI","VII","VIII","IX","X"]
[]
[null,null,null,"103. RETIRADOS POR CICLO Y SEXO EN CARRERAS DE CUATRO AÑOS, SEGÚN MOTIVO. EN LOS SEMESTRES I y II"]
[null,null,null,"MOTIVO",null,null,null,"TOTAL",null,"CICLO Y SEXO"]
[null,null,null,null,null,null,null,null,null,"I",null,"II",null,"III",null,"IV",null,"V",null,"VI",null,"VII",null,"VIII",null,"IX",null,"X"]
[null,null,null,null,null,null,null,"H","M","H","M","H","M","H","M","H","M","H","M","H","M","H","M","H","M","H","M"]
["00",null,null,"TOTAL RETIRADOS",null,null,null,{"$f":"SUM(H53:H66)","v":0},0,0,0,0,0,0,0,0,0,0,0,0,0,0,0,{"$f":"SUM(X53:X66)","v":0},0,0,0,{"$f":"SUM(AB53:AB66)","v":0},{"$f":"SUM(AC53:AC66)","v":0}]
["01",null,null,"Situación económica",null,null,null,{"$f":"SUM(J53,L53,N53,P53,R53,T53,V53,X53,Z53,AB53)","v":0},{"$f":"SUM(K53,M53,O53,Q53,S53,U53,W53,Y53,AA53,AC53)","v":0}]
["02",null,null,"Ingreso a la universidad",null,null,null,{"$f":"SUM(J54,L54,N54,P54,R54,T54,V54,X54,Z54,AB54)","v":0},{"$f":"SUM(K54,M54,O54,Q54,S54,U54,W54,Y54,AA54,AC54)","v":0}]
["03",null,null,"Elección de otra carrera / especialidad",null,null,null,0,0]
["04",null,null,"Enfermedad-Mental",null,null,null,0,0]
["05",null,null,"Enfermedad-Cancer",null,null,null,0,0]
["06",null,null,"Enfermedad-COVID19",null,null,null,0,0]
["07",null,null,"Otra enfermedad",null,null,null,0,0]
["08",null,null,"Adicción-Consumo de drogas",null,null,null,0,0]
["09",null,null,"Adicción-Consumo de alcohol",null,null,null,0,0]
["10",null,null,"Otro tipo de adicción",null,null,null,0,0]
["11",null,null,"Conducta delictiva",null,null,null,0,0]
["12",null,null,"Embarazo",null,null,null,0,0]
["13",null,null,"Migración",null,null,null,0,0]
["14",null,null,"Otro motivo de retiro",null,null,null,0,0]
[null,null,null,"Nota: Los totales de esta tabla deben ser iguales a la suma de lo reportado en el rubro “Retirados” de la tabla 101 y 102"]
[]
[null,null,null,"104. ¿CUÁNTOS ESTUDIANTES PARA PROGRAMAS DE ESTUDIOS DE CUATRO AÑOS, QUE INGRESARON A ESTA INSTITUCIÓN EN EL CICLO I"]
[null,null,null,"DEL PERIODO 2023, SON EGRESADOS DEL 5º AÑO DE EDUCACIÓN SECUNDARIA DEL PERIODO 2022 ?"]
[null,null,null,"SEMESTRE",null,"Número de Estudiantes ingresantes al primer ciclo en el periodo 2023, que egresaron en el 5º de Secundaria del 2022"]
[]
[null,null,null,null,null,"H",null,null,"M"]
["00",{"$f":"F74+H74","v":0},null,"TOTAL",null,{"$f":"F75+F76","v":0},null,{"$f":"H75+H76","v":0}]
["01",{"$f":"F75+H75","v":0},null,"2023 - I"]
["02",{"$f":"F76+H76","v":0},null,"2023 - II"]
[null,null,null,"105.  MATRÍCULADOS, RETIRADOS, EGRESADOS Y TITULADOS EN 2023, POR DURACIÓN DEL PROGRAMA DE ESTUDIOS CUATRO A MÁS AÑOS Y SEXO,"]
[null,null,null,"SEGÚN DENOMINACIÓN DE LA CARRERA EN LOS SEMESTRES 2023-I Y II"]
[null,null,null,"CARRERAS",null,null,null,null,null,null,null,null,null,null,"TIPO DE MODALIDAD",null,null,"PROGRAMAS DE ESTUDIOS DE CUATRO AÑOS"]
[{"$f":"SUM(R82:Y82)","v":0},null,null,"CODIGO","DENOMINACIÓN",null,null,null,null,null,null,null,null,null,null,null,null,"Matriculados",null,"Retirados",null,"Egresados",null,"Titulados"]
[null,null,null,null,null,null,null,null,null,null,null,null,null,null,null,null,null,"H","M","H","M","H","M","H","M"]
[{"$f":"SUM(A83:A92)","v":0},{"$f":"SUM(B83:B92)","v":0},null,"0000000000","TOTAL",null,null,null,null,null,null,null,null,null,null,null,null,{"$f":"SUM(R83:R92)","v":0},0,0,0,0,0,0,0]
[{"$f":"IF(AND(E83<>\"\",SUM(R83:Y83)=0),1,IF(AND(E83=\"\",SUM(R83:Y83)>0),2,IF(AND(E83<>\"\",SUM(R83:Y83)>0),3,0)))","v":0},{"$f":"IF(AND(E83<>\"\",O83<>\"\"),1,0)","v":0},null,null,{"$f":"IF($D83<>\"\",IF(ISERROR(VLOOKUP($D83,CARRPROF,2,FALSE)),\"\",VLOOKUP($D83,CARRPROF,2,FALSE)),\"\")","v":""}]
[0,0,null,null,{"$f":"IF($D84<>\"\",IF(ISERROR(VLOOKUP($D84,CARRPROF,2,FALSE)),\"\",VLOOKUP($D84,CARRPROF,2,FALSE)),\"\")","v":""}]
[0,0,null,null,""]
[0,0,null,null,""]
[0,0,null,null,""]
[0,0,null,null,""]
[0,0,null,null,""]
[0,0,null,null,""]
[0,0,null,null,""]
[0,0,null,null,""]
[]
["01: Presencial",null,null,"(PARA PROGRAMAS DE ESTUDIOS DE TRES AÑOS)"]
["02: Semipresencial",null,null,"106. MATRICULADOS, APROBADOS, DESAPROBADOS, RETIRADOS Y FALLECIDOS EN EL SEMESTRE 2023-I, EN PROGRAMAS DE ESTUDIOS DE TRES AÑOS, POR CICLO Y SEXO"]
["03: Distancia",null,null,"   (Sumar todos los turnos)"]
[null,null,null,"SITUACIÓN",null,null,null,"TOTAL",null,"CICLO Y SEXO"]
[null,null,null,null,null,null,null,null,null,"I",null,"II",null,"III",null,"IV",null,"V",null,"VI"]
[null,null,null,null,null,null,null,"H","M","H","M","H","M","H","M","H","M","H","M","H","M"]
["00",null,null,"Matriculados",null,null,"1/",{"$f":"SUM(H101:H104)","v":0},{"$f":"SUM(I101:I104)","v":0},{"$f":"SUM(J101:J104)","v":0},{"$f":"SUM(K101:K104)","v":0},{"$f":"SUM(L101:L104)","v":0},0,0,0,0,0,0,0,0,0]
["01",null,null,"Aprobados",null,null,null,{"$f":"SUM(J101,L101,N101,P101,R101,T101,V101,X101)","v":0},0]
["02",null,null,"Desaprobados",null,null,null,0,0]
["03",null,null,"Retirados",null,null,null,0,0]
["04",null,null,"Fallecidos",null,null,null,0,0]
[null,null,null,"1/ La matrícula debe ser la suma de todos los rubros."]
[]
[null,null,null,"107. MATRICULADOS, APROBADOS, DESAPROBADOS, RETIRADOS Y FALLECIDOS EN EL SEMESTRE 2023-II, EN PROGRAMAS DE ESTUDIOS DE TRES AÑOS, POR CICLO Y SEXO"]
[null,null,null,"   (Sumar todos los turnos)"]
[null,null,null,"SITUACIÓN",null,null,null,"TOTAL",null,"CICLO Y SEXO"]
[null,null,null,null,null,null,null,null,null,"I",null,"II",null,"III",null,"IV",null,"V",null,"VI"]
[null,null,null,null,null,null,null,"H","M","H","M","H","M","H","M","H","M","H","M","H","M"]
["00",null,null,"Matriculados",null,null,"1/",{"$f":"SUM(H113:H116)","v":0},{"$f":"SUM(I113:I116)","v":0},{"$f":"SUM(J113:J116)","v":0},{"$f":"SUM(K113:K116)","v":0},{"$f":"SUM(L113:L116)","v":0},0,0,0,0,0,0,0,0,0]
["01",null,null,"Aprobados",null,null,null,{"$f":"SUM(J113,L113,N113,P113,R113,T113)","v":0},0]
["02",null,null,"Desaprobados",null,null,null,0,0]
["03",null,null,"Retirados",null,null,null,0,0]
["04",null,null,"Fallecidos",null,null,null,0,0]
[null,null,null,"1/ La matrícula debe ser la suma de todos los rubros."]
[]
[null,null,null,"108. RETIRADOS POR CICLO Y SEXO EN CARRERAS DE TRES AÑOS, SEGÚN MOTIVO. EN LOS SEMESTRES I y II"]
[null,null,null,"MOTIVO",null,null,null,"TOTAL",null,"CICLO Y SEXO"]
[null,null,null,null,null,null,null,null,null,"I",null,"II",null,"III",null,"IV",null,"V",null,"VI"]
[null,null,null,null,null,null,null,"H","M","H","M","H","M","H","M","H","M","H","M","H","M"]
["00",null,null,"TOTAL RETIRADOS",null,null,null,{"$f":"SUM(H124:H137)","v":0},0,0,0,0,0,0,0,0,0,0,0,0,0]
["01",null,null,"Situación económica",null,null,null,{"$f":"SUM(J124,L124,N124,P124,R124,T124)","v":0},{"$f":"SUM(K124,M124,O124,Q124,S124,U124)","v":0}]
["02",null,null,"Ingreso a la universidad",null,null,null,{"$f":"SUM(J125,L125,N125,P125,R125,T125)","v":0},{"$f":"SUM(K125,M125,O125,Q125,S125,U125)","v":0}]
["03",null,null,"Elección de otra carrera / especialidad",null,null,null,{"$f":"SUM(J126,L126,N126,P126,R126,T126)","v":0},{"$f":"SUM(K126,M126,O126,Q126,S126,U126)","v":0}]
["04",null,null,"Enfermedad-Mental",null,null,null,0,0]
["05",null,null,"Enfermedad-Cancer",null,null,null,0,0]
["06",null,null,"Enfermedad-COVID19",null,null,null,0,0]
["07",null,null,"Otra enfermedad",null,null,null,0,0]
["08",null,null,"Adicción-Consumo de drogas",null,null,null,0,0]
["09",null,null,"Adicción-Consumo de alcohol",null,null,null,0,0]
["10",null,null,"Otro tipo de adicción",null,null,null,0,0]
["11",null,null,"Conducta delictiva",null,null,null,0,0]
["12",null,null,"Embarazo",null,null,null,0,0]
["13",null,null,"Migración",null,null,null,0,0]
["14",null,null,"Otro motivo",null,null,null,{"$f":"SUM(J137,L137,N137,P137,R137,T137)","v":0},{"$f":"SUM(K137,M137,O137,Q137,S137,U137)","v":0}]
[null,null,null,"Nota: Los totales de esta tabla deben ser iguales a la suma de lo reportado en el rubro “Retirados” de la tabla 106 y 107"]
[]
[null,null,null,"109. ¿CUÁNTOS ESTUDIANTES PARA PROGRAMAS DE ESTUDIOS DE TRES AÑOS, QUE INGRESARON A ESTA INSTITUCIÓN EN EL CICLO I"]
[null,null,null,"DEL PERIODO 2023, SON EGRESADOS DEL 5º AÑO DE EDUCACIÓN SECUNDARIA DEL PERIODO 2022 ?"]
[null,null,null,"SEMESTRE",null,"Número de Estudiantes ingresantes al primer ciclo en el periodo 2023, que egresaron en el 5º de Secundaria del 2022"]
[]
[null,null,null,null,null,2,null,null,"M"]
["00",{"$f":"F145+H145","v":0},null,"TOTAL",null,{"$f":"F146+F147","v":0},null,{"$f":"H146+H147","v":0}]
["01",{"$f":"F146+H146","v":0},null,"2023 - I"]
["02",{"$f":"F147+H147","v":0},null,"2023 - II"]
[null,null,null,"110.  MATRÍCULADOS, RETIRADOS, EGRESADOS Y TITULADOS EN 2023, POR DURACIÓN DEL PROGRAMA DE ESTUDIOS TRES AÑOS Y SEXO,"]
[null,null,null,"SEGÚN DENOMINACIÓN DEL PROGRAMA DE ESTUDIOS EN LOS SEMESTRES 2023-I Y II"]
[null,null,null,"CARRERAS",null,null,null,null,null,null,null,null,null,null,"TIPO DE MODALIDAD",null,null,"PROGRAMAS DE ESTUDIOS DE TRES AÑOS"]
[{"$f":"SUM(R153:Y153)","v":0},null,null,"CODIGO","DENOMINACIÓN",null,null,null,null,null,null,null,null,null,null,null,null,"Matriculados",null,"Retirados",null,"Egresados",null,"Titulados"]
[null,null,null,null,null,null,null,null,null,null,null,null,null,null,null,null,null,"H","M","H","M","H","M","H","M"]
[{"$f":"SUM(A154:A212)","v":0},{"$f":"SUM(B154:B212)","v":0},null,"0000000000","TOTAL",null,null,null,null,null,null,null,null,null,null,null,null,{"$f":"SUM(R154:R212)","v":0},0,0,0,0,0,0,0]
[{"$f":"IF(AND(E154<>\"\",SUM(R154:Y154)=0),1,IF(AND(E154=\"\",SUM(R154:Y154)>0),2,IF(AND(E154<>\"\",SUM(R154:Y154)>0),3,0)))","v":0},{"$f":"IF(AND(E154<>\"\",O154<>\"\"),1,0)","v":0},null,null,{"$f":"IF($D154<>\"\",IF(ISERROR(VLOOKUP($D154,CARRPROT,2,FALSE)),\"\",VLOOKUP($D154,CARRPROT,2,FALSE)),\"\")","v":""}]
[0,0,null,null,{"$f":"IF($D155<>\"\",IF(ISERROR(VLOOKUP($D155,CARRPROT,2,FALSE)),\"\",VLOOKUP($D155,CARRPROT,2,FALSE)),\"\")","v":""}]
[0,0,null,null,""]
[0,0,null,null,""]
[0,0,null,null,""]
[0,0,null,null,""]
[0,0,null,null,""]
[0,0,null,null,""]
[0,0,null,null,""]
[0,0,null,null,""]
[0,0,null,null,""]
[0,0,null,null,""]
[0,0,null,null,""]
[0,0,null,null,""]
[0,0,null,null,""]
[0,0,null,null,""]
[0,0,null,null,""]
[0,0,null,null,""]
[0,0,null,null,""]
[0,0,null,null,""]
[0,0,null,null,""]
[0,0,null,null,""]
[0,0,null,null,""]
[0,0,null,null,""]
[0,0,null,null,""]
[{"$f":"IF(AND(E179<>\"\",SUM(R179:Y179)=0),1,IF(AND(E179=\"\",SUM(R179:Y179)>0),2,IF(AND(E179<>\"\",SUM(R179:Y179)>0),3,0)))","v":0},{"$f":"IF(AND(E179<>\"\",O179<>\"\"),1,0)","v":0},null,null,""]
[0,0,null,null,""]
[0,0,null,null,""]
[0,0,null,null,""]
[0,0,null,null,""]
[0,0,null,null,""]
[0,0,null,null,""]
[0,0,null,null,""]
[0,0,null,null,""]
[0,0,null,null,""]
[0,0,null,null,""]
[0,0,null,null,""]
[0,0,null,null,""]
[0,0,null,null,""]
[0,0,null,null,""]
[0,0,null,null,""]
[0,0,null,null,""]
[0,0,null,null,""]
[0,0,null,null,""]
[0,0,null,null,""]
[0,0,null,null,""]
[0,0,null,null,""]
[0,0,null,null,""]
[0,0,null,null,""]
[0,0,null,null,""]
[0,0,null,null,""]
[0,0,null,null,""]
[0,0,null,null,""]
[0,0,null,null,""]
[0,0,null,null,""]
[0,0,null,null,""]
[0,0,null,null,""]
[0,0,null,null,""]
[0,0,null,null,""]
[]
[null,null,null,"(PARA PROGRAMAS DE ESTUDIOS DE DOS AÑOS)"]
[null,null,null,"111. MATRICULADOS, APROBADOS, DESAPROBADOS, RETIRADOS Y FALLECIDOS EN EL SEMESTRE 2023-I Y II, EN PROGRAMAS DE ESTUDIOS DE DOS AÑOS, POR CICLO Y SEXO"]
[null,null,null,"   (Sumar todos los turnos)"]
[null,null,null,"SITUACIÓN",null,"SEMESTRE ACADÉMICO I",null,null,null,null,null,null,null,null,null,"SEMESTRE ACADÉMICO II"]
[null,null,null,null,null,"TOTAL SEM-I",null,"CICLO Y SEXO",null,null,null,null,null,null,null,"TOTAL SEM-II",null,"CICLO Y SEXO"]
[null,null,null,null,null,null,null,"I",null,"II",null,"III",null,"IV",null,null,null,"I",null,"II",null,"III",null,"IV"]
[null,null,null,null,null,"H","M","H","M","H","M","H","M","H","M","H","M","H","M","H","M","H","M","H","M"]
["00",null,null,"Matriculados 1/",null,{"$f":"SUM(F222:F225)","v":0},0,0,0,0,0,0,0,0,0,0,0,0,0,0,0,0,0,0,0]
["01",null,null,"Aprobados",null,{"$f":"SUM(H222,J222,L222,N222)","v":0},0,null,null,null,null,null,null,null,null,{"$f":"SUM(R222,T222,V222,X222)","v":0},0]
["02",null,null,"Desaprobados",null,0,0,null,null,null,null,null,null,null,null,0,0]
["03",null,null,"Retirados",null,0,0,null,null,null,null,null,null,null,null,0,0]
["04",null,null,"Fallecidos",null,0,0,null,null,null,null,null,null,null,null,0,0]
[null,null,null,"1/ La matrícula debe ser la suma de todos los rubros."]
[]
[null,null,null,"112. RETIRADOS POR CICLO Y SEXO EN PROGRAMAS DE ESTUDIOS DE DOS AÑOS Y MÁS, SEGÚN MOTIVO. EN LOS SEMESTRES 2023-I y II"]
[null,null,null,"MOTIVO",null,null,null,"TOTAL",null,"CICLO Y SEXO"]
[null,null,null,null,null,null,null,null,null,"I",null,"II",null,"III",null,"IV"]
[null,null,null,null,null,null,null,"H","M","H","M","H","M","H","M","H","M"]
["00",null,null,"TOTAL RETIRADOS",null,null,null,{"$f":"SUM(H233:H246)","v":0},0,0,0,0,0,0,0,0,0]
["01",null,null,"Situación económica",null,null,null,{"$f":"SUM(J233,L233,N233,P233,R233,T233,V233,X233)","v":0},{"$f":"SUM(K233,M233,O233,Q233,S233,U233,W233,Y233)","v":0}]
["02",null,null,"Ingreso a la universidad",null,null,null,0,0]
["03",null,null,"Elección de otra carrera / especialidad",null,null,null,0,0]
["04",null,null,"Enfermedad-Mental",null,null,null,0,0]
["05",null,null,"Enfermedad-Cancer",null,null,null,0,0]
["06",null,null,"Enfermedad-COVID19",null,null,null,0,0]
["07",null,null,"Otra enfermedad",null,null,null,0,0]
["08",null,null,"Adicción-Consumo de drogas",null,null,null,0,0]
["09",null,null,"Adicción-Consumo de alcohol",null,null,null,0,0]
["10",null,null,"Otro tipo de adicción",null,null,null,0,0]
["11",null,null,"Conducta delictiva",null,null,null,0,0]
["12",null,null,"Embarazo",null,null,null,0,0]
["13",null,null,"Migración",null,null,null,0,0]
["14",null,null,"Otro motivo",null,null,null,{"$f":"SUM(J246,L246,N246,P246,R246,T246,V246,X246)","v":0},{"$f":"SUM(K246,M246,O246,Q246,S246,U246,W246,Y246)","v":0}]
[null,null,null,"Nota: Los totales de esta tabla deben ser iguales a la suma de lo reportado en el rubro “Retirados” de la tabla 111 de ambos semestres"]
[]
[null,null,null,"113. ¿CUÁNTOS ESTUDIANTES PARA PROGRAMAS DE ESTUDIOS DE DOS AÑOS, QUE INGRESARON A ESTA INSTITUCIÓN EN EL CICLO I"]
[null,null,null,"DEL PERIODO 2022, SON EGRESADOS DEL 5º AÑO DE EDUCACIÓN SECUNDARIA DEL PERIODO 2021 ?"]
[null,null,null,"SEMESTRE",null,"Número de Estudiantes ingresantes al primer ciclo en el periodo 2023, que egresaron en el 5º de Secundaria del 2022"]
[]
[null,null,null,null,null,"H",null,null,"M"]
["00",{"$f":"F254+H254","v":0},null,"TOTAL",null,{"$f":"F255+F256","v":0},null,{"$f":"H255+H256","v":0}]
["01",{"$f":"F255+H255","v":0},null,"2023 - I"]
["02",{"$f":"F256+H256","v":0},null,"2023 - II"]
[null,null,null,"114. MATRÍCULADOS, RETIRADOS, EGRESADOS Y TITULADOS EN 2023, POR DURACIÓN DEL PROGRAMA DE ESTUDIOS DOS AÑOS Y SEXO,"]
[null,null,null,"SEGÚN DENOMINACIÓN DEL PROGRAMA DE ESTUDIOS EN LOS SEMESTRES 2023-I Y II"]
[null,null,null,"CARRERAS",null,null,null,null,null,null,null,null,null,null,"TIPO DE MODALIDAD",null,null,"PROGRAMAS DE ESTUDIOS DE DOS AÑOS"]
[{"$f":"SUM(R262:Y262)","v":0},null,null,"CODIGO","DENOMINACIÓN",null,null,null,null,null,null,null,null,null,null,null,null,"Matriculados",null,"Retirados",null,"Egresados",null,"Titulados"]
[null,null,null,null,null,null,null,null,null,null,null,null,null,null,null,null,null,"H","M","H","M","H","M","H","M"]
[{"$f":"SUM(A263:A272)","v":0},{"$f":"SUM(B263:B272)","v":0},null,"0000000000","TOTAL",null,null,null,null,null,null,null,null,null,null,null,null,{"$f":"SUM(R263:R272)","v":0},0,0,0,0,0,0,0]
[{"$f":"IF(AND(E263<>\"\",SUM(R263:Y263)=0),1,IF(AND(E263=\"\",SUM(R263:Y263)>0),2,IF(AND(E263<>\"\",SUM(R263:Y263)>0),3,0)))","v":0},{"$f":"IF(AND(E263<>\"\",O263<>\"\"),1,0)","v":0},null,null,{"$f":"IF($D263<>\"\",IF(ISERROR(VLOOKUP($D263,CARRTEC,2,FALSE)),\"\",VLOOKUP($D263,CARRTEC,2,FALSE)),\"\")","v":""}]
[0,0,null,null,{"$f":"IF($D264<>\"\",IF(ISERROR(VLOOKUP($D264,CARRTEC,2,FALSE)),\"\",VLOOKUP($D264,CARRTEC,2,FALSE)),\"\")","v":""}]
[0,0,null,null,""]
[0,0,null,null,""]
[0,0,null,null,""]
[0,0,null,null,""]
[0,0,null,null,""]
[0,0,null,null,""]
[0,0,null,null,""]
[0,0,null,null,""]
[]
[null,null,null,"(PARA TODOS LOS PROGRAMAS DE ESTUDIOS)"]
[null,null,null,"115. DESCRIPCIÓN DE OTROS"]
[{"$f":"SUM(A277:A291)","v":0},null,null,"NRO.","OTRA ENFERMEDAD",null,null,null,null,{"$f":"COUNTA(E277:J291)","v":0},"OTRO TIPO DE ADICCIÓN",null,null,null,null,null,{"$f":"COUNTA(K277:Q291)","v":0},"OTROS MOTIVOS DE RETIRO",null,null,null,null,null,{"$f":"COUNTA(R277:X291)","v":0}]
[{"$f":"IF(OR(E277<>\"\",K277<>\"\",R277<>\"\"),1,0)","v":0},null,null,"01"]
[{"$f":"IF(OR(E278<>\"\",K278<>\"\",R278<>\"\"),1,0)","v":0},null,null,"02"]
[0,null,null,"03"]
[0,null,null,"04"]
[0,null,null,"05"]
[0,null,null,"06"]
[0,null,null,"07"]
[0,null,null,"08"]
[0,null,null,"09"]
[0,null,null,"10"]
[0,null,null,"11"]
[0,null,null,"12"]
[0,null,null,"13"]
[0,null,null,"14"]
[0,null,null,"15"]
[null,null,null,"Nota: No se registran cantidades, solo debe especificar la descripción de lo reportado en los rubros “Otra enfermedad”, “Otro tipo de adicción” y “Otro motivo de retiro” de las tablas 103, 108 y 112."]
[]
[null,null,null,"116. EGRESADOS, BACHILLER TÉCNICO Y TITULADOS, POR EDAD, SEGÚN SEXO, EN LOS SEMESTRES ACADÉMICOS 2023 I Y II."]
[null,null,null,"SITUACIÓN",null,null,"TOTAL",null,null,"EDAD EN AÑOS CUMPLIDOS AL 31 DE MARZO / SEMESTRE I y II"]
[{"$f":"SUM(G297:H302)","v":0},null,null,null,null,null,null,null,"19 y menos",20,21,22,23,24,25,26,27,28,29,30,"31-35","36-40","41-45","46-50","51 y más"]
["01",null,null,"Egresados - Hombres",null,null,{"$f":"SUM(I297:Y297)","v":0}]
["02",null,null,"Egresados - Mujeres",null,null,0]
["03",null,null,"Bachilleres Técnicos - Hombres",null,null,0]
["04",null,null,"Bachilleres Técnicos - Mujeres",null,null,0]
["05",null,null,"Titulados - Hombres",null,null,0]
["06",null,null,"Titulados - Mujeres",null,null,0]
[null,null,null,"Nota: Los totales de esta tabla deben ser iguales a la suma de lo reportado en el rubro “Egresados” y “Titulados” de las tablas 105, 110 y 114 para los semestre I y II."]
[null,null,null,"Bachiller Técnico: Solamente se incluye a los IES que cuentan con egresados en los programas de estudios autorizados en el licenciamiento."]
[null,null,null,"117. EGRESADOS POR SEXO, TIPO DE DISCAPACIDAD U OTRA CONDICIÓN, SEGÚN CARRERAS Y/O PROGRAMAS DE ESTUDIOS"]
[null,null,null,"CARRERAS Y/O PROGRAMAS DE ESTUDIOS",null,null,null,null,null,null,"TOTAL",null,"Discapacidad Intelectual",null,null,null,null,null,"Discapacidad Auditiva",null,null,null,"Discapacidad Visual",null,null,null,"Discapacidad Física o Motora",null,"Trastorno del Espectro Autista",null,"Sordoceguera",null,"Multidis-capacidad",null,"Otra discapacidad u otra condición",null," Ninguna  discapacidad"]
[null,null,null,null,null,null,null,null,null,null,null,null,"Retardo mental leve",null,"Retardo mental moderado",null,"Retardo mental severo",null,"Hipoacusia",null,"Sordera total",null,"Baja visión",null,"Ceguera"]
[{"$f":"SUM(A310:A339)","v":0},null,null,"CÓDIGO",null,"DENOMINACIÓN",null,null,null,null,"H","M","H","M","H","M","H","M","H","M","H","M","H","M","H","M","H","M","H","M","H","M","H","M","H","M","H","M"]
[0,null,null,"0000000000","TOTAL",null,null,null,null,null,{"$f":"SUM(K310:K339)","v":0},0,0,0,0,0,0,0,0,0,0,0,0,0,0,0,0,0,0,0,{"$f":"SUM(AE310:AE339)","v":0},0,0,0,0,0,{"$f":"SUM(AK310:AK339)","v":0},{"$f":"SUM(AL310:AL339)","v":0}]
[{"$f":"IF(AND(E310<>\"\",SUM(M310:AL310)=0),1,IF(AND(E310=\"\",SUM(M310:AL310)>0),2,IF(AND(E310<>\"\",SUM(M310:AL310)>0),3,0)))","v":0},null,null,null,{"$f":"CONCATENATE(AN310,AO310,AP310)","v":""},null,null,null,null,null,{"$f":"SUM(M310,O310,Q310,S310,U310,W310,Y310,AA310,AC310,AE310,AG310,AI310,AK310)","v":0},{"$f":"SUM(N310,P310,R310,T310,V310,X310,Z310,AB310,AD310,AF310,AH310,AJ310,AL310)","v":0},null,null,null,null,null,null,null,null,null,null,null,null,null,null,null,null,null,null,null,null,null,null,null,null,null,null,null,{"$f":" IF(ISERROR(VLOOKUP($D310,CARRPROF,2,FALSE)),\"\",VLOOKUP($D310,CARRPROF,2,FALSE))","v":""},{"$f":" IF(ISERROR(VLOOKUP($D310,CARRPROT,2,FALSE)),\"\",VLOOKUP($D310,CARRPROT,2,FALSE))","v":""},{"$f":" IF(ISERROR(VLOOKUP($D310,CARRTEC,2,FALSE)),\"\",VLOOKUP($D310,CARRTEC,2,FALSE))","v":""}]
[0,null,null,null,{"$f":"CONCATENATE(AN311,AO311,AP311)","v":""},null,null,null,null,null,{"$f":"SUM(M311,O311,Q311,S311,U311,W311,Y311,AA311,AC311,AE311,AG311,AI311,AK311)","v":0},{"$f":"SUM(N311,P311,R311,T311,V311,X311,Z311,AB311,AD311,AF311,AH311,AJ311,AL311)","v":0},null,null,null,null,null,null,null,null,null,null,null,null,null,null,null,null,null,null,null,null,null,null,null,null,null,null,null,{"$f":" IF(ISERROR(VLOOKUP($D311,CARRPROF,2,FALSE)),\"\",VLOOKUP($D311,CARRPROF,2,FALSE))","v":""},{"$f":" IF(ISERROR(VLOOKUP($D311,CARRPROT,2,FALSE)),\"\",VLOOKUP($D311,CARRPROT,2,FALSE))","v":""},{"$f":" IF(ISERROR(VLOOKUP($D311,CARRTEC,2,FALSE)),\"\",VLOOKUP($D311,CARRTEC,2,FALSE))","v":""}]
[0,null,null,null,"",null,null,null,null,null,0,0,null,null,null,null,null,null,null,null,null,null,null,null,null,null,null,null,null,null,null,null,null,null,null,null,null,null,null,"","",""]
[0,null,null,null,"",null,null,null,null,null,0,0,null,null,null,null,null,null,null,null,null,null,null,null,null,null,null,null,null,null,null,null,null,null,null,null,null,null,null,"","",""]
[0,null,null,null,"",null,null,null,null,null,0,0,null,null,null,null,null,null,null,null,null,null,null,null,null,null,null,null,null,null,null,null,null,null,null,null,null,null,null,"","",""]
[0,null,null,null,"",null,null,null,null,null,0,0,null,null,null,null,null,null,null,null,null,null,null,null,null,null,null,null,null,null,null,null,null,null,null,null,null,null,null,"","",""]
[0,null,null,null,"",null,null,null,null,null,0,0,null,null,null,null,null,null,null,null,null,null,null,null,null,null,null,null,null,null,null,null,null,null,null,null,null,null,null,"","",""]
[0,null,null,null,"",null,null,null,null,null,0,0,null,null,null,null,null,null,null,null,null,null,null,null,null,null,null,null,null,null,null,null,null,null,null,null,null,null,null,"","",""]
[0,null,null,null,"",null,null,null,null,null,{"$f":"SUM(M318,O318,Q318,S318,U318,W318,Y318,AA318,AC318,AE318,AG318,AI318,AK318)","v":0},{"$f":"SUM(N318,P318,R318,T318,V318,X318,Z318,AB318,AD318,AF318,AH318,AJ318,AL318)","v":0},null,null,null,null,null,null,null,null,null,null,null,null,null,null,null,null,null,null,null,null,null,null,null,null,null,null,null,"","",""]
[0,null,null,null,"",null,null,null,null,null,0,0,null,null,null,null,null,null,null,null,null,null,null,null,null,null,null,null,null,null,null,null,null,null,null,null,null,null,null,"","",""]
[{"$f":"IF(AND(E320<>\"\",SUM(M320:AL320)=0),1,IF(AND(E320=\"\",SUM(M320:AL320)>0),2,IF(AND(E320<>\"\",SUM(M320:AL320)>0),3,0)))","v":0},null,null,null,{"$f":"CONCATENATE(AN320,AO320,AP320)","v":""},null,null,null,null,null,{"$f":"SUM(M320,O320,Q320,S320,U320,W320,Y320,AA320,AC320,AE320,AG320,AI320,AK320)","v":0},{"$f":"SUM(N320,P320,R320,T320,V320,X320,Z320,AB320,AD320,AF320,AH320,AJ320,AL320)","v":0},null,null,null,null,null,null,null,null,null,null,null,null,null,null,null,null,null,null,null,null,null,null,null,null,null,null,null,"","",""]
[0,null,null,null,"",null,null,null,null,null,0,0,null,null,null,null,null,null,null,null,null,null,null,null,null,null,null,null,null,null,null,null,null,null,null,null,null,null,null,"","",""]
[0,null,null,null,"",null,null,null,null,null,0,0,null,null,null,null,null,null,null,null,null,null,null,null,null,null,null,null,null,null,null,null,null,null,null,null,null,null,null,"","",""]
[0,null,null,null,"",null,null,null,null,null,0,0,null,null,null,null,null,null,null,null,null,null,null,null,null,null,null,null,null,null,null,null,null,null,null,null,null,null,null,"","",""]
[0,null,null,null,"",null,null,null,null,null,0,0,null,null,null,null,null,null,null,null,null,null,null,null,null,null,null,null,null,null,null,null,null,null,null,null,null,null,null,"","",""]
[0,null,null,null,"",null,null,null,null,null,0,0,null,null,null,null,null,null,null,null,null,null,null,null,null,null,null,null,null,null,null,null,null,null,null,null,null,null,null,"","",""]
[0,null,null,null,"",null,null,null,null,null,0,0,null,null,null,null,null,null,null,null,null,null,null,null,null,null,null,null,null,null,null,null,null,null,null,null,null,null,null,"","",""]
[0,null,null,null,"",null,null,null,null,null,0,0,null,null,null,null,null,null,null,null,null,null,null,null,null,null,null,null,null,null,null,null,null,null,null,null,null,null,null,"","",""]
[0,null,null,null,"",null,null,null,null,null,0,0,null,null,null,null,null,null,null,null,null,null,null,null,null,null,null,null,null,null,null,null,null,null,null,null,null,null,null,"","",""]
[0,null,null,null,"",null,null,null,null,null,0,0,null,null,null,null,null,null,null,null,null,null,null,null,null,null,null,null,null,null,null,null,null,null,null,null,null,null,null,"","",""]
[0,null,null,null,"",null,null,null,null,null,0,0,null,null,null,null,null,null,null,null,null,null,null,null,null,null,null,null,null,null,null,null,null,null,null,null,null,null,null,"","",""]
[0,null,null,null,"",null,null,null,null,null,0,0,null,null,null,null,null,null,null,null,null,null,null,null,null,null,null,null,null,null,null,null,null,null,null,null,null,null,null,"","",""]
[0,null,null,null,"",null,null,null,null,null,0,0,null,null,null,null,null,null,null,null,null,null,null,null,null,null,null,null,null,null,null,null,null,null,null,null,null,null,null,"","",""]
[0,null,null,null,"",null,null,null,null,null,0,0,null,null,null,null,null,null,null,null,null,null,null,null,null,null,null,null,null,null,null,null,null,null,null,null,null,null,null,"","",""]
[0,null,null,null,"",null,null,null,null,null,0,0,null,null,null,null,null,null,null,null,null,null,null,null,null,null,null,null,null,null,null,null,null,null,null,null,null,null,null,"","",""]
[0,null,null,null,"",null,null,null,null,null,0,0,null,null,null,null,null,null,null,null,null,null,null,null,null,null,null,null,null,null,null,null,null,null,null,null,null,null,null,"","",""]
[0,null,null,null,"",null,null,null,null,null,0,0,null,null,null,null,null,null,null,null,null,null,null,null,null,null,null,null,null,null,null,null,null,null,null,null,null,null,null,"","",""]
[0,null,null,null,"",null,null,null,null,null,0,0,null,null,null,null,null,null,null,null,null,null,null,null,null,null,null,null,null,null,null,null,null,null,null,null,null,null,null,"","",""]
[0,null,null,null,{"$f":"CONCATENATE(AN338,AO338,AP338)","v":""},null,null,null,null,null,{"$f":"SUM(M338,O338,Q338,S338,U338,W338,Y338,AA338,AC338,AE338,AG338,AI338,AK338)","v":0},{"$f":"SUM(N338,P338,R338,T338,V338,X338,Z338,AB338,AD338,AF338,AH338,AJ338,AL338)","v":0},null,null,null,null,null,null,null,null,null,null,null,null,null,null,null,null,null,null,null,null,null,null,null,null,null,null,null,"","",""]
[0,null,null,null,{"$f":"CONCATENATE(AN339,AO339,AP339)","v":""},null,null,null,null,null,0,0,null,null,null,null,null,null,null,null,null,null,null,null,null,null,null,null,null,null,null,null,null,null,null,null,null,null,null,"","",""]
[]
[null,null,null,"118. TITULADOS POR SEXO, TIPO DE DISCAPACIDAD U OTRA CONDICIÓN, SEGÚN CARRERAS Y/O PROGRAMAS DE ESTUDIOS"]
[null,null,null,"CARRERAS Y/O PROGRAMAS DE ESTUDIOS",null,null,null,null,null,null,"TOTAL",null,"Discapacidad Intelectual",null,null,null,null,null,"Discapacidad Auditiva",null,null,null,"Discapacidad Visual",null,null,null,"Discapacidad Física o Motora",null,"Trastorno del Espectro Autista",null,"Sordoceguera",null,"Multidis-capacidad",null,"Otra discapacidad u otra condición",null," Ninguna  discapacidad"]
[null,null,null,null,null,null,null,null,null,null,null,null,"Retardo mental leve",null,"Retardo mental moderado",null,"Retardo mental severo",null,"Hipoacusia",null,"Sordera total",null,"Baja visión",null,"Ceguera"]
[{"$f":"SUM(A346:A365)","v":0},null,null,"CÓDIGO",null,"DENOMINACIÓN",null,null,null,null,"H","M","H","M","H","M","H","M","H","M","H","M","H","M","H","M","H","M","H","M","H","M","H","M","H","M","H","M"]
[null,null,null,"0000000000","TOTAL",null,null,null,null,null,{"$f":"SUM(K346:K365)","v":0},0,0,0,0,0,0,0,0,0,0,0,0,0,0,0,0,0,0,0,0,0,0,0,0,0,0,0]
[{"$f":"IF(AND(E346<>\"\",SUM(M346:AL346)=0),1,IF(AND(E346=\"\",SUM(M346:AL346)>0),2,IF(AND(E346<>\"\",SUM(M346:AL346)>0),3,0)))","v":0},null,null,null,{"$f":"CONCATENATE(AN346,AO346,AP346)","v":""},null,null,null,null,null,{"$f":"SUM(M346,O346,Q346,S346,U346,W346,Y346,AA346,AC346,AE346,AG346,AI346,AK346)","v":0},{"$f":"SUM(N346,P346,R346,T346,V346,X346,Z346,AB346,AD346,AF346,AH346,AJ346,AL346)","v":0},null,null,null,null,null,null,null,null,null,null,null,null,null,null,null,null,null,null,null,null,null,null,null,null,null,null,null,{"$f":" IF(ISERROR(VLOOKUP($D346,CARRPROF,2,FALSE)),\"\",VLOOKUP($D346,CARRPROF,2,FALSE))","v":""},{"$f":" IF(ISERROR(VLOOKUP($D346,CARRPROT,2,FALSE)),\"\",VLOOKUP($D346,CARRPROT,2,FALSE))","v":""},{"$f":" IF(ISERROR(VLOOKUP($D346,CARRTEC,2,FALSE)),\"\",VLOOKUP($D346,CARRTEC,2,FALSE))","v":""}]
[0,null,null,null,"",null,null,null,null,null,{"$f":"SUM(M347,O347,Q347,S347,U347,W347,Y347,AA347,AC347,AE347,AG347,AI347,AK347)","v":0},{"$f":"SUM(N347,P347,R347,T347,V347,X347,Z347,AB347,AD347,AF347,AH347,AJ347,AL347)","v":0},null,null,null,null,null,null,null,null,null,null,null,null,null,null,null,null,null,null,null,null,null,null,null,null,null,null,null,{"$f":" IF(ISERROR(VLOOKUP($D347,CARRPROF,2,FALSE)),\"\",VLOOKUP($D347,CARRPROF,2,FALSE))","v":""},{"$f":" IF(ISERROR(VLOOKUP($D347,CARRPROT,2,FALSE)),\"\",VLOOKUP($D347,CARRPROT,2,FALSE))","v":""},{"$f":" IF(ISERROR(VLOOKUP($D347,CARRTEC,2,FALSE)),\"\",VLOOKUP($D347,CARRTEC,2,FALSE))","v":""}]
[0,null,null,null,"",null,null,null,null,null,0,0,null,null,null,null,null,null,null,null,null,null,null,null,null,null,null,null,null,null,null,null,null,null,null,null,null,null,null,"","",""]
[0,null,null,null,"",null,null,null,null,null,0,0,null,null,null,null,null,null,null,null,null,null,null,null,null,null,null,null,null,null,null,null,null,null,null,null,null,null,null,"","",""]
[0,null,null,null,"",null,null,null,null,null,0,0,null,null,null,null,null,null,null,null,null,null,null,null,null,null,null,null,null,null,null,null,null,null,null,null,null,null,null,"","",""]
[0,null,null,null,"",null,null,null,null,null,0,0,null,null,null,null,null,null,null,null,null,null,null,null,null,null,null,null,null,null,null,null,null,null,null,null,null,null,null,"","",""]
[0,null,null,null,"",null,null,null,null,null,0,0,null,null,null,null,null,null,null,null,null,null,null,null,null,null,null,null,null,null,null,null,null,null,null,null,null,null,null,"","",""]
[0,null,null,null,"",null,null,null,null,null,0,0,null,null,null,null,null,null,null,null,null,null,null,null,null,null,null,null,null,null,null,null,null,null,null,null,null,null,null,"","",""]
[0,null,null,null,"",null,null,null,null,null,{"$f":"SUM(M354,O354,Q354,S354,U354,W354,Y354,AA354,AC354,AE354,AG354,AI354,AK354)","v":0},{"$f":"SUM(N354,P354,R354,T354,V354,X354,Z354,AB354,AD354,AF354,AH354,AJ354,AL354)","v":0},null,null,null,null,null,null,null,null,null,null,null,null,null,null,null,null,null,null,null,null,null,null,null,null,null,null,null,"","",""]
[0,null,null,null,"",null,null,null,null,null,0,0,null,null,null,null,null,null,null,null,null,null,null,null,null,null,null,null,null,null,null,null,null,null,null,null,null,null,null,"","",""]
[0,null,null,null,"",null,null,null,null,null,0,0,null,null,null,null,null,null,null,null,null,null,null,null,null,null,null,null,null,null,null,null,null,null,null,null,null,null,null,"","",""]
[0,null,null,null,"",null,null,null,null,null,0,0,null,null,null,null,null,null,null,null,null,null,null,null,null,null,null,null,null,null,null,null,null,null,null,null,null,null,null,"","",""]
[0,null,null,null,"",null,null,null,null,null,0,0,null,null,null,null,null,null,null,null,null,null,null,null,null,null,null,null,null,null,null,null,null,null,null,null,null,null,null,"","",""]
[0,null,null,null,"",null,null,null,null,null,0,0,null,null,null,null,null,null,null,null,null,null,null,null,null,null,null,null,null,null,null,null,null,null,null,null,null,null,null,"","",""]
[0,null,null,null,"",null,null,null,null,null,0,0,null,null,null,null,null,null,null,null,null,null,null,null,null,null,null,null,null,null,null,null,null,null,null,null,null,null,null,"","",""]
[0,null,null,null,"",null,null,null,null,null,0,0,null,null,null,null,null,null,null,null,null,null,null,null,null,null,null,null,null,null,null,null,null,null,null,null,null,null,null,"","",""]
[0,null,null,null,"",null,null,null,null,null,0,0,null,null,null,null,null,null,null,null,null,null,null,null,null,null,null,null,null,null,null,null,null,null,null,null,null,null,null,"","",""]
[0,null,null,null,"",null,null,null,null,null,0,0,null,null,null,null,null,null,null,null,null,null,null,null,null,null,null,null,null,null,null,null,null,null,null,null,null,null,null,"","",""]
[0,null,null,null,"",null,null,null,null,null,0,0,null,null,null,null,null,null,null,null,null,null,null,null,null,null,null,null,null,null,null,null,null,null,null,null,null,null,null,"","",""]
[0,null,null,null,"",null,null,null,null,null,0,0,null,null,null,null,null,null,null,null,null,null,null,null,null,null,null,null,null,null,null,null,null,null,null,null,null,null,null,"","",""]
[]
[null,null,null,"119. BACHILLER TÉCNICO POR SEXO, TIPO DE DISCAPACIDAD U OTRA CONDICIÓN, SEGÚN CARRERAS Y/O PROGRAMAS DE ESTUDIOS"]
[null,null,null,"PROGRAMAS DE ESTUDIOS / OPCIÓN OCUPACIONAL",null,null,null,null,null,null,"TOTAL",null,"Discapacidad Intelectual",null,null,null,null,null,"Discapacidad Auditiva",null,null,null,"Discapacidad Visual",null,null,null,"Discapacidad Física o Motora",null,"Trastorno del Espectro Autista",null,"Sordoceguera",null,"Multidis-capacidad",null,"Otra discapacidad u otra condición",null," Ninguna  discapacidad"]
[null,null,null,null,null,null,null,null,null,null,null,null,"Retardo mental leve",null,"Retardo mental moderado",null,"Retardo mental severo",null,"Hipoacusia",null,"Sordera total",null,"Baja visión",null,"Ceguera"]
[{"$f":"SUM(A372:A391)","v":0},null,null,"CÓDIGO",null,"DENOMINACIÓN",null,null,null,null,"H","M","H","M","H","M","H","M","H","M","H","M","H","M","H","M","H","M","H","M","H","M","H","M","H","M","H","M"]
[null,null,null,"0000000000","TOTAL",null,null,null,null,null,{"$f":"SUM(K372:K391)","v":0},0,0,0,0,0,0,0,0,0,0,0,0,0,0,0,0,0,0,0,{"$f":"SUM(AE372:AE391)","v":0},0,0,0,0,0,{"$f":"SUM(AK372:AK391)","v":0},{"$f":"SUM(AL372:AL391)","v":0}]
[{"$f":"IF(AND(E372<>\"\",SUM(M372:AL372)=0),1,IF(AND(E372=\"\",SUM(M372:AL372)>0),2,IF(AND(E372<>\"\",SUM(M372:AL372)>0),3,0)))","v":0},null,null,null,{"$f":"CONCATENATE(AN372,AO372,AP372)","v":""},null,null,null,null,null,{"$f":"SUM(M372,O372,Q372,S372,U372,W372,Y372,AA372,AC372,AE372,AG372,AI372,AK372)","v":0},{"$f":"SUM(N372,P372,R372,T372,V372,X372,Z372,AB372,AD372,AF372,AH372,AJ372,AL372)","v":0},null,null,null,null,null,null,null,null,null,null,null,null,null,null,null,null,null,null,null,null,null,null,null,null,null,null,null,{"$f":" IF(ISERROR(VLOOKUP($D372,CARRPROF,2,FALSE)),\"\",VLOOKUP($D372,CARRPROF,2,FALSE))","v":""},{"$f":" IF(ISERROR(VLOOKUP($D372,CARRPROT,2,FALSE)),\"\",VLOOKUP($D372,CARRPROT,2,FALSE))","v":""},{"$f":" IF(ISERROR(VLOOKUP($D372,CARRTEC,2,FALSE)),\"\",VLOOKUP($D372,CARRTEC,2,FALSE))","v":""}]
[0,null,null,null,"",null,null,null,null,null,{"$f":"SUM(M373,O373,Q373,S373,U373,W373,Y373,AA373,AC373,AE373,AG373,AI373,AK373)","v":0},{"$f":"SUM(N373,P373,R373,T373,V373,X373,Z373,AB373,AD373,AF373,AH373,AJ373,AL373)","v":0},null,null,null,null,null,null,null,null,null,null,null,null,null,null,null,null,null,null,null,null,null,null,null,null,null,null,null,{"$f":" IF(ISERROR(VLOOKUP($D373,CARRPROF,2,FALSE)),\"\",VLOOKUP($D373,CARRPROF,2,FALSE))","v":""},{"$f":" IF(ISERROR(VLOOKUP($D373,CARRPROT,2,FALSE)),\"\",VLOOKUP($D373,CARRPROT,2,FALSE))","v":""},{"$f":" IF(ISERROR(VLOOKUP($D373,CARRTEC,2,FALSE)),\"\",VLOOKUP($D373,CARRTEC,2,FALSE))","v":""}]
[0,null,null,null,"",null,null,null,null,null,0,0,null,null,null,null,null,null,null,null,null,null,null,null,null,null,null,null,null,null,null,null,null,null,null,null,null,null,null,"","",""]
[0,null,null,null,"",null,null,null,null,null,0,0,null,null,null,null,null,null,null,null,null,null,null,null,null,null,null,null,null,null,null,null,null,null,null,null,null,null,null,"","",""]
[0,null,null,null,"",null,null,null,null,null,0,0,null,null,null,null,null,null,null,null,null,null,null,null,null,null,null,null,null,null,null,null,null,null,null,null,null,null,null,"","",""]
[0,null,null,null,"",null,null,null,null,null,0,0,null,null,null,null,null,null,null,null,null,null,null,null,null,null,null,null,null,null,null,null,null,null,null,null,null,null,null,"","",""]
[0,null,null,null,"",null,null,null,null,null,0,0,null,null,null,null,null,null,null,null,null,null,null,null,null,null,null,null,null,null,null,null,null,null,null,null,null,null,null,"","",""]
[0,null,null,null,"",null,null,null,null,null,0,0,null,null,null,null,null,null,null,null,null,null,null,null,null,null,null,null,null,null,null,null,null,null,null,null,null,null,null,"","",""]
[0,null,null,null,"",null,null,null,null,null,{"$f":"SUM(M380,O380,Q380,S380,U380,W380,Y380,AA380,AC380,AE380,AG380,AI380,AK380)","v":0},{"$f":"SUM(N380,P380,R380,T380,V380,X380,Z380,AB380,AD380,AF380,AH380,AJ380,AL380)","v":0},null,null,null,null,null,null,null,null,null,null,null,null,null,null,null,null,null,null,null,null,null,null,null,null,null,null,null,"","",""]
[0,null,null,null,"",null,null,null,null,null,0,0,null,null,null,null,null,null,null,null,null,null,null,null,null,null,null,null,null,null,null,null,null,null,null,null,null,null,null,"","",""]
[0,null,null,null,"",null,null,null,null,null,0,0,null,null,null,null,null,null,null,null,null,null,null,null,null,null,null,null,null,null,null,null,null,null,null,null,null,null,null,"","",""]
[0,null,null,null,"",null,null,null,null,null,0,0,null,null,null,null,null,null,null,null,null,null,null,null,null,null,null,null,null,null,null,null,null,null,null,null,null,null,null,"","",""]
[0,null,null,null,"",null,null,null,null,null,0,0,null,null,null,null,null,null,null,null,null,null,null,null,null,null,null,null,null,null,null,null,null,null,null,null,null,null,null,"","",""]
[0,null,null,null,"",null,null,null,null,null,0,0,null,null,null,null,null,null,null,null,null,null,null,null,null,null,null,null,null,null,null,null,null,null,null,null,null,null,null,"","",""]
[0,null,null,null,"",null,null,null,null,null,0,0,null,null,null,null,null,null,null,null,null,null,null,null,null,null,null,null,null,null,null,null,null,null,null,null,null,null,null,"","",""]
[0,null,null,null,"",null,null,null,null,null,0,0,null,null,null,null,null,null,null,null,null,null,null,null,null,null,null,null,null,null,null,null,null,null,null,null,null,null,null,"","",""]
[0,null,null,null,"",null,null,null,null,null,0,0,null,null,null,null,null,null,null,null,null,null,null,null,null,null,null,null,null,null,null,null,null,null,null,null,null,null,null,"","",""]
[0,null,null,null,"",null,null,null,null,null,0,0,null,null,null,null,null,null,null,null,null,null,null,null,null,null,null,null,null,null,null,null,null,null,null,null,null,null,null,"","",""]
[0,null,null,null,"",null,null,null,null,null,0,0,null,null,null,null,null,null,null,null,null,null,null,null,null,null,null,null,null,null,null,null,null,null,null,null,null,null,null,"","",""]
[0,null,null,null,"",null,null,null,null,null,0,0,null,null,null,null,null,null,null,null,null,null,null,null,null,null,null,null,null,null,null,null,null,null,null,null,null,null,null,"","",""]
[]
[null,null,null,"120. ¿CUÁL ES EL NÚMERO DE PROYECTOS DESARROLLADOS POR INSTITUCIONES DE LA EDUCACIÓN SUPERIOR QUE FUERON FINANCIADOS CON FONDOS PÚBLICOS?"]
[{"$f":"CONCATENATE(K394,P394)","v":""},null,null,"(Solo para gestión pública)",null,null,null,"-------------------",null,null,null,"Gestión Pública",null,null,null,null,"Gestión Privada"]
[]
[{"$f":"SUM(A397:A401)","v":0},{"$f":"SUM(B397:B401)","v":0},null,"NRO","NOMBRE DEL PROYECTO",null,null,null,null,null,"INSTITUCIÓN PÚBLICA QUE FINANCIA",null,null,null,"PARTIDA PRESUPUESTAL",null,null,null,"FUENTE DE FINANCIAMIENTO",null,null,null,"MONTO COMPROMETIDO"]
[{"$f":"IF(AND(E397<>\"\",K397<>\"\",O397<>\"\",S397<>\"\",W397<>\"\"),1,0)","v":0},{"$f":"COUNTA(E397:Y397)","v":0},null,"01"]
[{"$f":"IF(AND(E398<>\"\",K398<>\"\",O398<>\"\",S398<>\"\",W398<>\"\"),1,0)","v":0},{"$f":"COUNTA(E398:Y398)","v":0},null,"02"]
[{"$f":"IF(AND(E399<>\"\",K399<>\"\",O399<>\"\",S399<>\"\",W399<>\"\"),1,0)","v":0},0,null,"03"]
[{"$f":"IF(AND(E400<>\"\",K400<>\"\",O400<>\"\",S400<>\"\",W400<>\"\"),1,0)","v":0},0,null,"04"]
[{"$f":"IF(AND(E401<>\"\",K401<>\"\",O401<>\"\",S401<>\"\",W401<>\"\"),1,0)","v":0},0,null,"05"]
[]
[null,null,null,"DATOS DEL DIRECTOR Y/O RESPONSABLE (S) DEL LLENADO DE LA CÉDULA"]
[]
[null,null,null,"NOMBRES Y APELLIDOS",null,null,null,null,null,null,"CARGO",null,null,null,null,"CORREO ELECTRÓNICO",null,null,null,null,null,"TELÉFONO"]
[1]
[2]
[3]
[]
[]
[]
["DIRECTOR(A)"]
["SUB DIRECTOR(A)"]
["DOCENTE"]
["COORDINADOR(A)"]
["ASESOR"]
["ADMINISTRATIVO"]
["ASISTENTE"]
["AUXILIAR"]
["SECRETARIA(O)"]
["ESTADÍSTICO"]
["ESPECIALISTA"]
["BIBLIOTECARIO"]
["CARE"]
["COMANDANTE PNP"]
["CONTADOR"]
["DAIP"]
["DIGITADOR(A)"]
["GERENTE"]
["JEFE ACADÉMICO"]
["JEFE ADMINISTRATIVO"]
["JEFE DE ÁREA"]
["JEFE DE LABORATORIO"]
["JEFE DE PERSONAL"]
["JEFE DE SEDE"]
["JEFE DE UNIDAD"]
["OFICINISTA"]
["OPERADOR DE SISTEMAS"]
["PERSONAL DE SERVICIO"]
["PROGRAMADOR"]
["PROMOTOR(A)"]
["PSICOLOGO"]
["REGISTRADOR(A)"]
["REPRESENTANTE LEGAL"]
["SOPORTE TECNOLOGICO"]
["TÉC. ADMINISTRATIVO"]
["TESORERO(A)"]
["TRABAJADOR SOCIAL"]
["TUTOR"]
["OTROS"]

{"sheet":"Enviar","index":1,"n_rows":9,"n_cols":3,"rows_kept":9,"cut":false,"hidden":true,"merged":[[0,0,0,3],[1,0,1,3]]}
["CENSO ESCOLAR 2023"]
["RESULTADO DEL EJERCICIO EDUCATIVO"]
[]
[]
[null,"Paso 1:","Realice el ENVÍO con su clave EOL."]
[]
[null,"Paso 2:","Una vez realizado el ENVÍO,  Revise su constancia de envio."]
[]
[null,"  ADVERTENCIA","Asegúrese de registrar toda la información del nivel informante"]

{"sheet":"Carreras","index":2,"n_rows":854,"n_cols":6,"rows_kept":854,"cut":false,"hidden":true,"merged":[]}
[null,"PROFESIONAL TÉCNICO  (3 AÑOS DE ESTUDIO)",null,null,"PROFESIONAL (4 AÑOS DE ESTUDIO)"]
[null,"CÓDIGO","CARRERA",null,"CÓDIGO","CARRERA"]
[null,"SPT4181094","ABASTECIMIENTO ",null,"SPF4130008","ADMINISTRACIÓN DE EMPRESAS"]
[null,"SPT2151064","ACTUACIÓN ",null,"SPF0140011","ADMINISTRACIÓN DE EMPRESAS TURÍSTICAS Y HOTELERAS"]
[null,"SPT8311319","ACUICULTURA ",null,"SPF4130009","ADMINISTRACIÓN DE EMPRESAS Y CONTABILIDAD"]
[null,"SPT4131095","ADMINISTRACIÓN ",null,"SPF0120012","ADMINISTRACIÓN DE HOTELES, RESTAURANTES Y AFINES"]
[null,"SPT4121096","ADMINISTRACIÓN BANCARIA ",null,"SPF0140211","ADMINISTRACIÓN DE INDUSTRIAS TURÍSTICAS Y HOTELERAS"]
[null,"SPT4121097","ADMINISTRACIÓN BANCARIA POR COMPETENCIAS ",null,"SPF4130010","ADMINISTRACIÓN DE NEGOCIOS"]
[null,"SPT4121098","ADMINISTRACIÓN BANCARIA Y FINANCIERA ",null,"SPF4136141","ADMINISTRACIÓN Y DIRECCIÓN DE NEGOCIOS"]
[null,"SPT6120312","ADMINISTRACIÓN CON TECNOLOGÍAS DE LA INFORMACIÓN",null,"SPF2116628","ANIMACIÓN DIGITAL"]
[null,"SPT4131099","ADMINISTRACIÓN DE AEROPUERTOS ",null,"SPF7310023","ARQUITECTURA DE INTERIORES"]
[null,"SPT4131100","ADMINISTRACIÓN DE AGENCIA DE VIAJES ",null,"SPF2136130","ARTES PLÁSTICAS Y VISUALES"]
[null,"SPT4121101","ADMINISTRACIÓN DE BANCA Y FINANZAS ",null,"SPF3220007","COMUNICACIÓN AUDIOVISUAL MULTIMEDIA"]
[null,"SPT0120015","ADMINISTRACIÓN DE BAR ",null,"SPF3226143","COMUNICACIÓN ESTRATÉGICA"]
[null,"SPT6121185","ADMINISTRACIÓN DE CENTRO DE CÓMPUTO ",null,"SPF4116162","CONTABILIDAD Y FINANZAS"]
[null,"SPT6126106","ADMINISTRACIÓN DE CENTROS DE CÓMPUTO ",null,"SPF2110003","DIRECCIÓN DE ARTES GRÁFICAS Y PUBLICITARIAS"]
[null,"SPT6116178","ADMINISTRACIÓN DE CENTROS DE CÓMPUTO CON MENCIÓN EN IMPLEMENTACIÓN, CONFIGURACIÓN Y REPARACIÓN DE COMPUTADORAS ",null,"SPF2116138","DIRECCIÓN DE PROYECTOS VISUALES Y FOTOGRAFÍA"]
[null,"SPT9999002","ADMINISTRACION DE EMPRESAS",null,"SPF2110004","DIRECCIÓN Y DISEÑO GRÁFICO"]
[null,"SPT4131102","ADMINISTRACIÓN DE EMPRESAS ",null,"SPF2110005","DIRECCIÓN Y DISEÑO PUBLICITARIO"]
[null,"SPT4136597","ADMINISTRACIÓN DE EMPRESAS CON MENCIÓN EN AGRONEGOCIOS ",null,"SPF2120110","DIRECCIÓN Y GESTIÓN DE LA MODA"]
[null,"SPT4136137","ADMINISTRACIÓN DE EMPRESAS CON MENCIÓN EN EMPRESAS INDUSTRIALES ",null,"SPF2136117","DISEÑO DE PRODUCTO E INNOVACIÓN TECNOLÓGICA"]
[null,"SPT4136145","ADMINISTRACIÓN DE EMPRESAS CON MENCIÓN EN FINANZAS ",null,"SPF2116629","DISEÑO DE VIDEOJUEGOS Y ENTRETENIMIENTO DIGITAL"]
[null,"SPT4136136","ADMINISTRACIÓN DE EMPRESAS CON MENCIÓN EN GESTIÓN EMPRESARIAL ",null,"SPF2116076","DISEÑO GRÁFICO"]
[null,"SPT4131103","ADMINISTRACIÓN DE EMPRESAS DE TRANSPORTES ",null,"SPF2116630","DISEÑO Y COMUNICACIÓN VISUAL"]
[null,"SPT0120206","ADMINISTRACIÓN DE EMPRESAS HOTELERAS ",null,"SPF2120072","DISEÑO Y GESTIÓN DE LA MODA"]
[null,"SPT0141121","ADMINISTRACIÓN DE EMPRESAS TURÍSTICAS ",null,"SPF2136631","DISEÑO Y GESTIÓN DE MARCAS"]
[null,"SPT0141122","ADMINISTRACIÓN DE EMPRESAS TURÍSTICAS Y HOTELERAS ",null,"SPF2110211","FOTOGRAFÍA"]
[null,"SPT4130105","ADMINISTRACIÓN DE EMPRESAS Y CONTABILIDAD ",null,"SPF2116573","FOTOGRAFÍA E IMAGEN DIGITAL"]
[null,"SPT4136542","ADMINISTRACIÓN DE EMPRESAS Y GESTIÓN DE EQUIPOS ",null,"SPF4126632","GESTIÓN BANCARIA Y FINANCIERA"]
[null,"SPT4136543","ADMINISTRACIÓN DE EMPRESAS Y GESTIÓN DE MARKETING ",null,"SPF4116633","GESTIÓN CONTABLE, FINANCIERA Y TRIBUTARIA"]
[null,"SPT4136544","ADMINISTRACIÓN DE EMPRESAS Y GESTIÓN DE RECURSOS HUMANOS ",null,"SPF4136634","GESTIÓN DE LA CADENA DE SUMINISTROS"]
[null,"SPT4136545","ADMINISTRACIÓN DE EMPRESAS Y GESTIÓN FINANCIERA ",null,"SPF6126635","GESTIÓN DE SISTEMAS DE INFORMACIÓN"]
[null,"SPT0121123","ADMINISTRACIÓN DE HOSTELERÍA ",null,"SPF4146636","GESTIÓN ESTRATÉGICA DE MARKETING"]
[null,"SPT0121124","ADMINISTRACIÓN DE HOTELES Y RESTAURANTES ",null,"SPF4166637","GESTIÓN ESTRATÉGICA DE NEGOCIOS INTERNACIONALES"]
[null,"SPT0121125","ADMINISTRACIÓN DE HOTELES, RESTAURANTES Y AFINES ",null,"SPF6116163","INGENIERÍA DE SISTEMAS DE INFORMACIÓN"]
[null,"SPT0140035","ADMINISTRACIÓN DE INDUSTRIAS TURÍSTICAS Y HOTELERAS ",null,"SPF6130015","INGENIERÍA DE TELECOMUNICACIONES"]
[null,"SPT4131104","ADMINISTRACIÓN DE NEGOCIOS ",null,"SPF6130016","INGENIERÍA DE TELEMÁTICA"]
[null,"SPT9999001","ADMINISTRACIÓN DE NEGOCIOS AGROPECUARIOS",null,"SPF2210001","LITERATURA BÍBLICA"]
[null,"SPT4131301","ADMINISTRACIÓN DE NEGOCIOS AGROPECUARIOS ",null,"SPF4146142","MARKETING E INNOVACIÓN"]
[null,"SPT4120222","ADMINISTRACIÓN DE NEGOCIOS BANCARIOS Y FINANCIEROS ",null,"SPF4146118","MARKETING ESTRATÉGICO E INNOVACIÓN"]
[null,"SPT4126546","ADMINISTRACIÓN DE NEGOCIOS BANCARIOS Y MICROFINANZAS ",null,"SPF4140013","MARKETING INTEGRAL"]
[null,"SPT4126547","ADMINISTRACIÓN DE NEGOCIOS BANCARIOS, FINANCIEROS Y BANCA DIGITAL ",null,"SPF4136638","PLANIFICACIÓN DE PROCESOS ESTRATÉGICOS DE RECURSOS HUMANOS"]
[null,"SPT4126548","ADMINISTRACIÓN DE NEGOCIOS BANCARIOS, FINANCIEROS Y GESTIÓN DE EQUIPOS ",null,"SPF2116639","PUBLICIDAD Y COMUNICACIÓN COMERCIAL"]
[null,"SPT4130413","ADMINISTRACIÓN DE NEGOCIOS CON MENCIÓN EN COMERCIALIZACIÓN",null,"SPF4140196","PUBLICIDAD Y MARKETING DIGITAL"]
[null,"SPT4161146","ADMINISTRACIÓN DE NEGOCIOS INTERNACIONALES ",null,"SPF6120014","SISTEMAS INFORMÁTICOS PARA LA PRODUCTIVIDAD"]
[null,"SPT0141127","ADMINISTRACIÓN DE NEGOCIOS INTERNACIONALES DE TURISMO ",null,"SPF6130079","TÉCNICAS DE INGENIERÍA DE TELECOMUNICACIONES"]
[null,"SPT4166549","ADMINISTRACIÓN DE NEGOCIOS INTERNACIONALES Y GESTIÓN DE FINANZAS INTERNACIONALES ",null,"SPF6130080","TÉCNICAS DE INGENIERÍA DE TELEMÁTICA"]
[null,"SPT4160514","ADMINISTRACIÓN DE NEGOCIOS INTERNACIONALES Y MARKETING INTERNACIONAL",null,"SPF7110018","TÉCNICAS DE INGENIERÍA ELÉCTRICA"]
[null,"SPT0140166","ADMINISTRACIÓN DE NEGOCIOS TURÍSTICOS ",null,"SPF7120019","TÉCNICAS DE INGENIERÍA ELECTRÓNICA"]
[null,"SPT4130115","ADMINISTRACIÓN DE NEGOCIOS Y DIRECCIÓN DE VENTAS ",null,"SPF7130020","TÉCNICAS DE INGENIERÍA MECÁNICA DE MANTENIMIENTO"]
[null,"SPT4130083","ADMINISTRACIÓN DE NEGOCIOS Y GESTIÓN DE EMPRENDIMIENTO ",null,"SPF7130021","TÉCNICAS DE INGENIERÍA MECÁNICA DE PRODUCCIÓN"]
[null,"SPT4131105","ADMINISTRACIÓN DE NEGOCIOS Y VENTAS ",null,"SPF7116122","TÉCNICO EN INGENIERÍA ELÉCTRICA"]
[null,"SPT4126146","ADMINISTRACIÓN DE OPERACIONES BANCARIAS Y FINANCIERAS ",null,"SPF7126121","TÉCNICO EN INGENIERÍA ELECTRÓNICA"]
[null,"SPT0146084","ADMINISTRACIÓN DE OPERACIONES TURÍSTICAS ",null,"SPF7136072","TÉCNICO EN INGENIERÍA MECÁNICA"]
[null,"SPT7240130","ADMINISTRACIÓN DE OPERACIONES Y MINERÍA ",null,"SPF8110024","TECNOLOGÍA AGRÍCOLA"]
[null,"SPT6116180","ADMINISTRACION DE PLATAFORMAS ",null,"SPF7130017","TECNOLOGÍA DE LA PRODUCCIÓN"]
[null,"SPT6116105","ADMINISTRACIÓN DE PLATAFORMAS Y SERVICIOS WEB ",null,"SPF7130022","TECNOLOGÍA MECÁNICA ELÉCTRICA"]
[null,"SPT8210162","ADMINISTRACIÓN DE RECURSOS AGROPECUARIOS Y FORESTALES ",null,"SPF2210175","TEOLOGÍA"]
[null,"SPT8211316","ADMINISTRACIÓN DE RECURSOS FORESTALES ",null,"SPF2210002","TEOLOGÍA - EVANGÉLICA"]
[null,"SPT4181158","ADMINISTRACIÓN DE RECURSOS HUMANOS ",null,"SPF3130006","TERAPIA PSICOANALÍTICA"]
[null,"SPT6116165","ADMINISTRACIÓN DE REDES Y COMUNICACIÓN ",null,"SPFAG99999","OTROS"]
[null,"SPT6120215","ADMINISTRACIÓN DE REDES Y COMUNICACIONES "]
[null,"SPT6126591","ADMINISTRACIÓN DE REDES Y COMUNICACIONES CON MENCIÓN EN VIRTUALIZACIÓN Y SEGURIDAD INFORMÁTICA "]
[null,"SPT4121106","ADMINISTRACIÓN DE SEGUROS "]
[null,"SPT0121126","ADMINISTRACIÓN DE SERVICIOS DE HOSTELERÍA "]
[null,"SPT0126102","ADMINISTRACIÓN DE SERVICIOS DE HOSTELERÍA Y RESTAURANTES "]
[null,"SPT0126601","ADMINISTRACIÓN DE SERVICIOS DE HOSTELERÍA Y RESTAURANTES CON MENCIÓN EN GERENCIA DE LA HOSPITALIDAD INTERNACIONAL "]
[null,"SPT0120615","ADMINISTRACIÓN DE SERVICIOS DE HOSTELERÍA Y RESTAURANTES CON MENCIÓN EN SERVICIOS"]
[null,"SPT4131159","ADMINISTRACIÓN DE SERVICIOS DE POSTALES "]
[null,"SPT0126071","ADMINISTRACIÓN DE SERVICIOS EN HOSTELERÍA ",null,"TÉCNICO  (2 AÑOS DE ESTUDIO)"]
[null,"SPT0120122","ADMINISTRACIÓN DE SERVICIOS TURÍSTICOS ",null,"CÓDIGO","CARRERA"]
[null,"SPT0140177","ADMINISTRACIÓN DE SERVICIOS TURÍSTICOS Y HOTELES ",null,"STE6111395","ADMINISTRACIÓN DE BASE DE DATOS"]
[null,"SPT6126551","ADMINISTRACIÓN DE SISTEMAS PARA LA TRANSFORMACIÓN DIGITAL ",null,"STE6126167","ADMINISTRACIÓN DE DATOS"]
[null,"SPT6126552","ADMINISTRACIÓN DE SISTEMAS Y PRUEBAS DE SOLUCIONES MULTIPLATAFORMA PARA LA TRANSFORMACIÓN DIGITAL ",null,"STE0121375","ADMINISTRACIÓN DE HOSTELERÍA"]
[null,"SPT6126553","ADMINISTRACIÓN DE SISTEMAS Y SOLUCIONES DE INTELIGENCIA DE NEGOCIOS PARA LA TRANSFORMACIÓN DIGITAL ",null,"STE0121376","ADMINISTRACIÓN DE HOTELES"]
[null,"SPT4131107","ADMINISTRACIÓN EJECUTIVA ",null,"STE7321441","ADMINISTRACIÓN DE LA CONSTRUCCIÓN"]
[null,"SPT4130154","ADMINISTRACIÓN EMPRESARIAL ",null,"STE4130068","ADMINISTRACIÓN DE PEQUEÑOS NEGOCIOS"]
[null,"SPT4110133","ADMINISTRACIÓN FINANCIERA Y CONTABLE ",null,"STE6121396","ADMINISTRACIÓN DE REDES"]
[null,"SPT0120039","ADMINISTRACIÓN HOSTELERA ",null,"STE0121377","ADMINISTRACIÓN DE RESTAURANTES"]
[null,"SPT0121128","ADMINISTRACIÓN HOTELERA ",null,"STE4130077","ADMINISTRACIÓN DE SERVICIOS"]
[null,"SPT4131108","ADMINISTRACIÓN INDUSTRIAL ",null,"STE0121378","ADMINISTRACIÓN TURÍSTICA"]
[null,"SPT6121186","ADMINISTRACIÓN INFORMÁTICA DE EMPRESAS ",null,"STE4136624","ALMACENAMIENTO E INVENTARIOS"]
[null,"SPT4131109","ADMINISTRACIÓN LOGÍSTICA ",null,"STE8111455","ALTO RIESGO"]
[null,"SPT0310093","ADMINISTRACIÓN MILITAR ",null,"STE5426615","ANÁLISIS DE DATOS EMPRESARIALES"]
[null,"SPT4171110","ADMINISTRACIÓN MUNICIPAL ",null,"STE4146625","ANÁLISIS DE MERCADOS"]
[null,"SPT0310100","ADMINISTRACIÓN NAVAL ",null,"STE4126616","ASESORAMIENTO OPERATIVO Y COMERCIAL DE PRODUCTOS BANCARIOS Y FINANCIEROS"]
[null,"SPT4170045","ADMINISTRACIÓN PÚBLICA ",null,"STE4181379","AVIACIÓN COMERCIAL"]
[null,"SPT4131302","ADMINISTRACIÓN RURAL ",null,"STE8111451","AVICULTURA Y CRIANZA DE ANIMALES MENORES"]
[null,"SPT0120026","ADMINISTRACIÓN TURÍSTICA ",null,"STE0126617","BAR Y COCTELERÍA"]
[null,"SPT0120046","ADMINISTRACIÓN TURÍSTICA Y HOTELERA ",null,"STE0326175","CIENCIAS ADMINISTRATIVAS Y POLICIALES"]
[null,"SPT0321362","ADMINISTRACIÓN Y CIENCIAS POLICIALES ",null,"STE0121381","COCINA"]
[null,"SPT4110155","ADMINISTRACIÓN Y CONTABILIDAD ",null,"STE0120121","COCINA Y RESTAURANTES"]
[null,"SPT4131113","ADMINISTRACIÓN Y FINANZAS ",null,"STE4161388","COMERCIO INTERNACIONAL"]
[null,"SPT0121129","ADMINISTRACIÓN Y GERENCIA EN HOTELERÍA INTERNACIONAL ",null,"STE4181392","COMERCIO"]
[null,"SPT4131111","ADMINISTRACIÓN Y GESTIÓN COMERCIAL ",null,"STE4131389","COMERCIO Y PRODUCCIÓN"]
[null,"SPT4136554","ADMINISTRACIÓN Y GESTIÓN COMERCIAL CON MENCIÓN EN FINANZAS ",null,"STE6116505","COMPUTACIÓN E INFORMÁTICA"]
[null,"SPT4136555","ADMINISTRACIÓN Y GESTIÓN COMERCIAL CON MENCIÓN EN RECURSOS HUMANOS ",null,"STE7241424","CONCENTRACIÓN DE MINERALES POR SEPARACIÓN FÍSICA"]
[null,"SPT4130167","ADMINISTRACIÓN Y GESTIÓN DE EMPRESAS ",null,"STE7211401","CONFITERÍA INDUSTRIAL"]
[null,"SPT4131112","ADMINISTRACIÓN Y GESTIÓN EMPRESARIAL ",null,"STE3130029","CONSEJERÍA DE ORIENTACIÓN PSICOANALÍTICA"]
[null,"SPT4131187","ADMINISTRACIÓN Y SISTEMAS ",null,"STE8111454","CONSERVACIÓN Y APROVECHAMIENTO RACIONAL DE RECURSOS FORESTALES"]
[null,"SPT4131160","ADMINISTRATIVO ",null,"STE4110069","CONTABILIDAD OPERATIVA"]
[null,"SPT7321281","AEROFOTOGRAFÍA ",null,"STE4111394","CONTABILIDAD"]
[null,"SPT7141240","AERONÁUTICA ",null,"STE0131363","DEPORTES"]
[null,"SPT4181161","AGENCIA DE DESARROLLO INTEGRAL ",null,"STE6120152","DESARROLLO DE REDES"]
[null,"SPT8111223","AGROINDUSTRIAS ",null,"STE6120150","DESARROLLO DE SOFTWARE"]
[null,"SPT8110104","AGRONOMÍA ",null,"STE7316089","DIBUJO DE ARQUITECTURA Y OBRAS CIVILES"]
[null,"SPT8111303","AGROPECUARIA ",null,"STE7320030","DIBUJO DE CONSTRUCCIÓN CIVIL"]
[null,"SPT6121188","ANÁLISIS DE SISTEMAS ",null,"STE3220193","DIRECCIÓN DE RADIO Y TELEVISIÓN"]
[null,"SPT6121189","ANÁLISIS DE SISTEMAS Y MODELACIÓN DE BASE DE DATOS ",null,"STE0130199","DIRECCIÓN TÉCNICA EN FÚTBOL"]
[null,"SPT7320025","ANÁLISIS DE SUELOS Y CONCRETO ",null,"STE7111410","ELECTRICIDAD INDUSTRIAL"]
[null,"SPT6120085","ANÁLISIS E IMPLEMENTACIÓN DE SERVICIOS WEB ",null,"STE7121417","ELECTROMECÁNICA"]
[null,"SPT3111167","ANÁLISIS ECONÓMICO ",null,"STE7121413","ELECTRÓNICA DE CONSUMO"]
[null,"SPT3121178","ANÁLISIS POLÍTICO ",null,"STE7241425","EXPLOTACIÓN DE MINAS"]
[null,"SPT5311182","ANÁLISIS QUÍMICO ",null,"STE7211403","EXTRACCIÓN DE ACEITES, GRASAS Y AZÚCAR"]
[null,"SPT6121190","ANALISTA ",null,"STE7236503","FABRICACIÓN DE PRENDAS DE VESTIR"]
[null,"SPT4110622","ANALISTA BANCARIO ",null,"STE9171456","FARMACIA"]
[null,"SPT4114019","ANALISTA COMERCIAL ",null,"STE8110031","FRUTICULTURA"]
[null,"SPT4111818","ANALISTA DE RIESGOS ",null,"STE5326096","GEOLOGÍA Y EXPLORACIÓN"]
[null,"SPT3110188","ANALISTA ECONÓMICO ",null,"STE4130171","GESTIÓN DE LOGÍSTICA Y DE ALMACENES"]
[null,"SPT4111515","ANALISTA EN MERCADOTÉCNIA ",null,"STE4130179","GESTIÓN EMPRESARIAL"]
[null,"SPT5421479","ANALISTA ESTADÍSTICO ",null,"STE4130170","GESTIÓN Y ADMINISTRACIÓN DE PEQUEÑOS NEGOCIOS"]
[null,"SPT7324248","ANALISTA INMOBILIARIO ",null,"STE0141457","GUÍA DE TURISTAS"]
[null,"SPT3120189","ANALISTA POLÍTICO ",null,"STE8120032","HORTICULTURA"]
[null,"SPT6121191","ANALISTA PROGRAMADOR ",null,"STE0121383","HOSTELERÍA"]
[null,"SPT5426592","ANALÍTICA ",null,"STE7231435","INDUSTRIA DEL VESTIDO"]
[null,"SPT9120113","ANESTESIA ",null,"STE7116510","INSTALACIONES ELÉCTRICAS"]
[null,"SPT9121320","ANESTESIOLOGÍA ",null,"STE7110099","INSTRUMENTACIÓN INDUSTRIAL"]
[null,"SPT2116066","ANIMACIÓN 3D Y EFECTOS ESPECIALES ",null,"STE0320138","INVESTIGACIÓN PRIVADA"]
[null,"SPT6116144","ANIMACIÓN 3D Y EFECTOS VISUALES ",null,"STE8111453","JARDINERÍA Y FLORICULTURA"]
[null,"SPT2111035","ANIMACIÓN DIGITAL ",null,"STE2211365","LITERATURA BÍBLICA"]
[null,"SPT6116556","ANIMACIÓN DIGITAL Y DISEÑO 3D ",null,"STE3211371","LOCUCIÓN Y COMUNICACIÓN DE RADIO Y TELEVISIÓN"]
[null,"SPT3231027","ARCHIVOS ",null,"STE4136168","LOGÍSTICA DIGITAL INTEGRADA"]
[null,"SPT0311350","ARMAS SUBMARINAS ",null,"STE9999001","MANTENIMIENTO DE EQUIPO PESADO"]
[null,"SPT6116557","ARQUITECTURA DE DATOS EMPRESARIALES CON MENCIÓN EN BIG DATA DEVELOPER ",null,"STE7136618","MANTENIMIENTO DE MAQUINARIAS Y REDES ELÉCTRICAS"]
[null,"SPT7311291","ARQUITECTURA DE INTERIORES ",null,"STE7110204","MANTENIMIENTO DE MÁQUINAS Y REDES ELÉCTRICAS"]
[null,"SPT6116107","ARQUITECTURA DE PLATAFORMA Y SERVICIOS DE TECNOLOGÍAS DE LA INFORMACIÓN ",null,"STE7136095","MANTENIMIENTO DE PLANTAS INDUSTRIALES"]
[null,"SPT6116149","ARQUITECTURA DE PLATAFORMAS Y SERVICIOS DE TECNOLOGÍA DE LA INFORMACION CON MENCIÓN EN PROGRAMACIÓN ",null,"STE7116619","MANTENIMIENTO DE SISTEMAS ELÉCTRICOS"]
[null,"SPT6116176","ARQUITECTURA DE PLATAFORMAS Y SERVICIOS DE TECNOLOGÍAS DE INFORMACIÓN ",null,"STE7116097","MANTENIMIENTO ELÉCTRICO E INSTRUMENTACIÓN"]
[null,"SPT6116558","ARQUITECTURA DE PLATAFORMAS Y SERVICIOS DE TECNOLOGÍAS DE LA INFORMACIÓN CON MENCIÓN EN PROGRAMAS MULTIMEDIA ",null,"STE7116620","MANTENIMIENTO ELECTRÓNICO INDUSTRIAL"]
[null,"SPT6120125","ARQUITECTURA DE SISTEMAS DE INFORMACIÓN ",null,"STE7131419","MATRICERÍA"]
[null,"SPT0120159","ARTE CULINARIO ",null,"STE7131420","MECÁNICA AUTOMOTRIZ"]
[null,"SPT2151065","ARTE DRAMÁTICO ",null,"STE7131421","MECÁNICA DE EQUIPOS PESADOS"]
[null,"SPT2111036","ARTES GRÁFICAS ",null,"STE7131422","MECÁNICA DE PLANTA"]
[null,"SPT2111037","ARTES GRÁFICAS Y PUBLICITARIAS ",null,"STE7131423","MECÁNICA DE PRODUCCIÓN"]
[null,"SPT2131032","ARTES PLÁSTICAS Y VISUALES ",null,"STE7130210","MECÁNICA INDUSTRIAL"]
[null,"SPT2130064","ARTES VISUALES ",null,"STE5216100","MEDIO AMBIENTE"]
[null,"SPT2111038","ARTES Y CIENCIAS PUBLICITARIAS ",null,"STE2116169","MODELADO Y ANIMACIÓN DIGITAL"]
[null,"SPT2130120","ARTESANÍA ",null,"STE7211405","MOLINERÍA Y PROCESAMIENTO DE GRANOS Y TUBÉRCULOS"]
[null,"SPT0311351","ARTILLERÍA ",null,"STE8311450","NAVEGACIÓN Y PESCA"]
[null,"SPT8310025","ASEGURAMIENTO DE LA CALIDAD DE PRODUCTOS HIDROBIOLÓGICOS ",null,"STE4161390","NEGOCIOS - COMERCIO INTERNACIONAL"]
[null,"SPT4136161","ASISTENCIA ADMINISTRATIVA ",null,"STE4131391","NEGOCIOS - COMERCIO Y PRODUCCIÓN"]
[null,"SPT4156123","ASISTENCIA DE DIRECCIÓN Y GERENCIA ",null,"STE3211372","OPERACIÓN DE EQUIPOS DE GRABACIÓN Y MEZCLA"]
[null,"SPT4156127","ASISTENTE EJECUTIVA DE GERENCIA ",null,"STE3211373","OPERACIÓN DE EQUIPOS DE RADIO Y TELEVISIÓN"]
[null,"SPT4151152","ASISTENTE EJECUTIVO ",null,"STE7130090","OPERACIÓN DE MAQUINARIA PESADA"]
[null,"SPT2111091","AUDIOVISUAL MULTIMEDIA ",null,"STE3211374","OPERACIÓN DE SISTEMAS DE DIFUSIÓN SONORA"]
[null,"SPT7141241","AUTOTRÓNICA ",null,"STE4166626","OPERACIONES DE COMERCIO EXTERIOR"]
[null,"SPT9131325","AUXILIAR DE ENFERMERÍA ",null,"STE7241426","OPERACIONES DE PERFORACIÓN"]
[null,"SPT7141242","AVIÓNICA ",null,"STE2116621","ORGANIZACIÓN DE EVENTOS Y ESPECTÁCULOS"]
[null,"SPT7146559","AVIÓNICA Y MECÁNICA AERONAÚTICA ",null,"STE4170997","OTRO PROGRAMA EN ADMINISTRACIÓN PÚBLICA"]
[null,"SPT4111170","BANCA Y FINANZAS ",null,"STE3150997","OTRO PROGRAMA EN ANTROPOLOGÍA"]
[null,"SPT6116166","BIG DATA Y CIENCIA DE DATOS ",null,"STE7310997","OTRO PROGRAMA EN ARQUITECTURA Y URBANISMO"]
[null,"SPT2111092","CÁMARA Y EDICIÓN CREATIVA ",null,"STE2130997","OTRO PROGRAMA EN ARTE"]
[null,"SPT0311352","CAPITANÍA Y GUARDACOSTAS ",null,"STE2140997","OTRO PROGRAMA EN ARTESANÍA Y MANUALIDADES"]
[null,"SPT0316160","CAPITANÍAS Y GUARDACOSTAS ",null,"STE9210997","OTRO PROGRAMA EN ASISTENCIA A ADULTOS MAYORES Y DISCAPACITADOS"]
[null,"SPT0320226","CIENCIAS ADMINISTRATIVAS Y POLICIALES ",null,"STE9220997","OTRO PROGRAMA EN ASISTENCIA A LA INFANCIA Y SERVICIOS PARA JÓVENES"]
[null,"SPT0326087","CIENCIAS ADMINISTRATIVAS Y POLICIALES CON MENCIÓN EN INVESTIGACIÓN CRIMINAL ",null,"STE3230997","OTRO PROGRAMA EN BIBLIOTECOLOGÍA Y ARCHIVO"]
[null,"SPT0326088","CIENCIAS ADMINISTRATIVAS Y POLICIALES CON MENCIÓN EN ORDEN Y SEGURIDAD ",null,"STE5110997","OTRO PROGRAMA EN BIOLOGÍA"]
[null,"SPT8110716","CIENCIAS AGROPECUARIAS",null,"STE6110997","OTRO PROGRAMA EN CIENCIAS DE LA COMPUTACIÓN"]
[null,"SPT3221072","CIENCIAS DE LA COMUNICACIÓN ",null,"STE3220997","OTRO PROGRAMA EN CIENCIAS DE LA COMUNICACIÓN"]
[null,"SPT2111039","CIENCIAS PUBLICITARIAS ",null,"STE5320997","OTRO PROGRAMA EN CIENCIAS DE LA TIERRA"]
[null,"SPT2156560","CINEMATOGRAFIA ",null,"STE3120997","OTRO PROGRAMA EN CIENCIAS POLÍTICAS"]
[null,"SPT2110105","CINEMATOGRAFÍA ",null,"STE4180997","OTRO PROGRAMA EN COMPETENCIAS LABORALES"]
[null,"SPT0121130","COCINA ",null,"STE7320997","OTRO PROGRAMA EN CONSTRUCCIÓN E INGENIERÍA CIVIL"]
[null,"SPT4181162","COMERCIO ",null,"STE4110997","OTRO PROGRAMA EN CONTABILIDAD E IMPUESTOS"]
[null,"SPT4161147","COMERCIO EXTERIOR ",null,"STE0130997","OTRO PROGRAMA EN DEPORTE"]
[null,"SPT4161148","COMERCIO EXTERIOR ÁREA ARTESANÍA DEL VESTIR ",null,"STE4220997","OTRO PROGRAMA EN DERECHO PRIVADO"]
[null,"SPT4161149","COMERCIO EXTERIOR ÁREA FINANZAS ",null,"STE4210997","OTRO PROGRAMA EN DERECHO PÚBLICO"]
[null,"SPT4161150","COMERCIO EXTERIOR ÁREA MARKETING ",null,"STE2120997","OTRO PROGRAMA EN DISEÑO INDUSTRIAL, DE MODAS E INTERIORES"]
[null,"SPT2151057","COMPOSICIÓN ",null,"STE5210997","OTRO PROGRAMA EN ECOLOGÍA Y MEDIO AMBIENTE"]
[null,"SPT6111192","COMPUTACIÓN ",null,"STE3110997","OTRO PROGRAMA EN ECONOMÍA"]
[null,"SPT6111193","COMPUTACIÓN E INFORMÁTICA ",null,"STE1610997","OTRO PROGRAMA EN EDUCACIÓN ARTÍSTICA"]
[null,"SPT6121194","COMPUTACIÓN Y ADMINISTRACIÓN DE SISTEMAS ",null,"STE1410997","OTRO PROGRAMA EN EDUCACIÓN ESPECIAL"]
[null,"SPT6121195","COMPUTACIÓN Y SISTEMAS ",null,"STE1510997","OTRO PROGRAMA EN EDUCACIÓN FÍSICA"]
[null,"SPT6110051","COMPUTACIÓN Y SOLUCIONES INFORMÁTICAS ",null,"STE1110997","OTRO PROGRAMA EN EDUCACIÓN INICIAL"]
[null,"SPT3220817","COMUNICACIÓN",null,"STE0310997","OTRO PROGRAMA EN EDUCACIÓN MILITAR Y DE DEFENSA"]
[null,"SPT3221073","COMUNICACIÓN AUDIOVISUAL ",null,"STE1120997","OTRO PROGRAMA EN EDUCACIÓN PRIMARIA"]
[null,"SPT3221074","COMUNICACIÓN AUDIOVISUAL MULTIMEDIA ",null,"STE1210997","OTRO PROGRAMA EN EDUCACIÓN SECUNDARIA"]
[null,"SPT3221075","COMUNICACIÓN ESCÉNICA ",null,"STE1310997","OTRO PROGRAMA EN EDUCACIÓN SUPERIOR Y TECNOLÓGICA"]
[null,"SPT3220918","COMUNICACIÓN ESTRATÉGICA",null,"STE7110997","OTRO PROGRAMA EN ELECTRICIDAD Y ENERGÍA"]
[null,"SPT3221076","COMUNICACIÓN INTEGRAL ",null,"STE7120997","OTRO PROGRAMA EN ELECTRÓNICA Y AUTOMATIZACIÓN"]
[null,"SPT3226134","COMUNICACIÓN PERIODÍSTICA ",null,"STE9130997","OTRO PROGRAMA EN ENFERMERÍA"]
[null,"SPT3221077","COMUNICACIÓN SOCIAL ",null,"STE5420997","OTRO PROGRAMA EN ESTADÍSTICA"]
[null,"SPT3226113","COMUNICACIÓN Y ARTE DIGITAL ",null,"STE9170997","OTRO PROGRAMA EN FARMACIA"]
[null,"SPT3226561","COMUNICACIÓN Y MARKETING DE LA MODA ",null,"STE2230997","OTRO PROGRAMA EN FILOSOFÍA Y ETICA"]
[null,"SPT7241264","CONCENTRACIÓN DE MINERALES ",null,"STE5330997","OTRO PROGRAMA EN FÍSICA"]
[null,"SPT8311295","CONDUCCIÓN DE EMBARCACIONES DE PESCA ",null,"STE4120997","OTRO PROGRAMA EN GESTIÓN FINANCIERA, ADMINISTRACIÓN BANCARIA Y SEGUROS"]
[null,"SPT0141338","CONDUCCIÓN EN TURISMO ",null,"STE4130997","OTRO PROGRAMA EN GESTIÓN Y ADMINISTRACIÓN"]
[null,"SPT2221292","CONSERVACIÓN DE BIENES ARQUEOLÓGICOS ",null,"STE1910997","OTRO PROGRAMA EN GESTIÓN Y CALIDAD EDUCATIVA"]
[null,"SPT2131293","CONSERVACIÓN Y RESTAURACIÓN ",null,"STE2220997","OTRO PROGRAMA EN HISTORIA Y ARQUEOLOGÍA"]
[null,"SPT7320041","CONSTRUCCIÓN ARTÍSTICA EN MADERA ",null,"STE8120997","OTRO PROGRAMA EN HORTICULTURA"]
[null,"SPT9999003","CONSTRUCCION CIVIL",null,"STE0120997","OTRO PROGRAMA EN HOTELERÍA, RESTAURANTES Y GASTRONOMÍA"]
[null,"SPT7321282","CONSTRUCCIÓN CIVIL ",null,"STE2310997","OTRO PROGRAMA EN IDIOMAS"]
[null,"SPT2131033","CONSTRUCCIÓN DE ARTE EN MADERA ",null,"STE7220997","OTRO PROGRAMA EN INDUSTRIA Y PRODUCTOS TRANSFORMADOS (EXCEPTO ALIMENTOS, TEXTIL, AGRO, MINAS Y PETRÓLEO)"]
[null,"SPT7320213","CONSTRUCCIÓN Y TOPOGRAFÍA ",null,"STE7210997","OTRO PROGRAMA EN INDUSTRIAS ALIMENTARIAS"]
[null,"SPT2140028","CONSTRUCCIONES ARTÍSTICAS EN MADERA ",null,"STE7330997","OTRO PROGRAMA EN INGENIERÍA SANITARIA"]
[null,"SPT7130200","CONSTRUCCIONES METÁLICAS ",null,"STE5430997","OTRO PROGRAMA EN INVESTIGACIÓN OPERATIVA"]
[null,"SPT9999004","CONTABILIDAD",null,"STE2320997","OTRO PROGRAMA EN LINGÜÍSTICA Y LITERATURA"]
[null,"SPT4111171","CONTABILIDAD ",null,"STE4140997","OTRO PROGRAMA EN MARKETING Y PUBLICIDAD"]
[null,"SPT4111172","CONTABILIDAD COMPUTARIZADA ",null,"STE5410997","OTRO PROGRAMA EN MATEMÁTICA"]
[null,"SPT4116124","CONTABILIDAD CON MENCIÓN EN FINANZAS ",null,"STE7130997","OTRO PROGRAMA EN MECÁNICA Y METALÚRGICA"]
[null,"SPT4116150","CONTABILIDAD CON MENCIÓN EN PROCESOS DE TRIBUTACIÓN ",null,"STE9120997","OTRO PROGRAMA EN MEDICINA"]
[null,"SPT4116598","CONTABILIDAD CON MENCIÓN EN TRIBUTACIÓN ",null,"STE7240997","OTRO PROGRAMA EN MINERÍA Y EXTRACCIÓN"]
[null,"SPT4116562","CONTABILIDAD Y AUDITORÍA ",null,"STE2150997","OTRO PROGRAMA EN MÚSICA Y ARTES ESCÉNICAS"]
[null,"SPT4111173","CONTABILIDAD Y FINANZAS ",null,"STE4160997","OTRO PROGRAMA EN NEGOCIOS INTERNACIONALES"]
[null,"SPT4116563","CONTABILIDAD Y FINANZAS CORPORATIVAS ",null,"STE9180997","OTRO PROGRAMA EN NUTRICIÓN"]
[null,"SPT4116564","CONTABILIDAD Y TRIBUTACIÓN ",null,"STE9140997","OTRO PROGRAMA EN OBSTETRICIA"]
[null,"SPT4110056","CONTABILIDAD, FINANZAS Y AUDITORÍA ",null,"STE9110997","OTRO PROGRAMAEN ODONTOLOGÍA"]
[null,"SPT0316156","CONTROL DE TIRO ",null,"STE0110997","OTRO PROGRAMA EN PELUQUERÍA Y TRATAMIENTOS DE BELLEZA"]
[null,"SPT6131210","CONTROL DE TRÁNSITO AÉREO ",null,"STE3210997","OTRO PROGRAMA EN PERIODISMO Y LOCUCIÓN"]
[null,"SPT7120015","CONTROLISTA DE MÁQUINAS Y PROCESOS INDUSTRIALES ",null,"STE8310997","OTRO PROGRAMA EN PESCA"]
[null,"SPT0111349","COSMÉTICA DERMATOLÓGICA ",null,"STE8110997","OTRO PROGRAMA EN PRODUCCIÓN AGRÍCOLA Y GANADERA"]
[null,"SPT0110025","COSMETOLOGÍA ",null,"STE7230997","OTRO PROGRAMA EN PRODUCCIÓN TEXTIL Y CONFECCIONES"]
[null,"SPT0116109","COSMIATRÍA ",null,"STE0320997","OTRO PROGRAMA EN PROTECCIÓN DE LAS PERSONAS Y DE PROPIEDAD"]
[null,"SPT4111174","CRÉDITO SECTORIAL ",null,"STE3130997","OTRO PROGRAMA EN PSICOLOGÍA"]
[null,"SPT4111175","CRÉDITOS ",null,"STE5310997","OTRO PROGRAMA EN QUÍMICA"]
[null,"SPT9131326","CUIDADOS AUXILIARES DE ENFERMERÍA ",null,"STE5220997","OTRO PROGRAMA EN RECURSOS HÍDRICOS"]
[null,"SPT2151055","DANZA ",null,"STE2210997","OTRO PROGRAMA EN RELIGIÓN Y TEOLOGÍA"]
[null,"SPT0311353","DEFENSA AÉREA ",null,"STE0220997","OTRO PROGRAMA EN SALUD Y PROTECCIÓN LABORAL"]
[null,"SPT6110153","DESARROLLO DE REDES Y GESTIÓN DE SERVICIOS ",null,"STE0210997","OTRO PROGRAMA EN SANEAMIENTO DE LA COMUNIDAD"]
[null,"SPT6116085","DESARROLLO DE SISTEMAS DE INFORMACIÓN ",null,"STE4150997","OTRO PROGRAMA EN SECRETARIADO Y TRABAJO DE OFICINA"]
[null,"SPT6121019","DESARROLLO DE SISTEMAS DE INFORMACIÓN CON MENCIÓN AUDITOR DE SISTEMAS DE INFORMACIÓN",null,"STE0410997","OTRO PROGRAMA EN SERVICIOS DE TRANSPORTE"]
[null,"SPT7126588","DESARROLLO DE SISTEMAS DE INFORMACIÓN CON MENCIÓN EN APLICATIVOS MÓVILES ",null,"STE8210997","OTRO PROGRAMA EN SILVICULTURA"]
[null,"SPT7126587","DESARROLLO DE SISTEMAS DE INFORMACIÓN CON MENCIÓN EN INTELIGENCIA DE NEGOCIOS ",null,"STE6120997","OTRO PROGRAMA EN SISTEMAS Y CÓMPUTO"]
[null,"SPT7126148","DESARROLLO DE SISTEMAS DE INFORMACIÓN CON MENCIÓN EN PROCESOS DE AUTOMATIZACIÓN ",null,"STE3140997","OTRO PROGRAMA EN SOCIOLOGÍA Y ESTUDIOS CULTURALES"]
[null,"SPT6110220","DESARROLLO DE SISTEMAS DE INFORMACIÓN MENCIÓN EN SEGURIDAD INFORMÁTICA ",null,"STE2110997","OTRO PROGRAMA EN TÉCNICAS AUDIOVISUALES Y DE PRODUCCIÓN PARA MEDIOS DE COMUNICACIÓN"]
[null,"SPT6110221","DESARROLLO DE SISTEMAS DE INFORMACIÓN MENCIÓN EN SOFTWARE EMPRESARIAL ",null,"STE9150997","OTRO PROGRAMA EN TECNOLOGÍA DE DIAGNÓSTICO Y TRATAMIENTO MÉDICO"]
[null,"SPT6121120","DESARROLLO DE SISTEMAS DE LA INFORMACIÓN",null,"STE6130997","OTRO PROGRAMA EN TELECOMUNICACIONES"]
[null,"SPT6116164","DESARROLLO DE SISTEMAS DE LA INFORMACIÓN",null,"STE9160997","OTRO PROGRAMA EN TERAPIA Y REHABILITACIÓN"]
[null,"SPT6120165","DESARROLLO DE SOFTWARE ",null,"STE9230997","OTRO PROGRAMA EN TRABAJO SOCIAL"]
[null,"SPT6110182","DESARROLLO DE SOFTWARE E INTELIGENCIA DE NEGOCIOS ",null,"STE7140997","OTRO PROGRAMA EN VEHÍCULOS, BARCOS Y AERONAVES MOTORIZADAS"]
[null,"SPT6110151","DESARROLLO DE SOFTWARE E INTELIGENCIA DE NEGOCIOS ",null,"STE8410997","OTRO PROGRAMA EN VETERINARIA"]
[null,"SPT6110156","DESARROLLO DE SOFTWARE Y APLICATIVOS MÓVILES ",null,"STE0140997","OTRO PROGRAMA EN VIAJES, TURISMO Y ACTIVIDADES RECREATIVAS"]
[null,"SPT8311221","DESARROLLO PESQUERO Y ACUÍCOLA",null,"STE4190997","OTROS PROGRAMAS EN ADMINISTRACIÓN Y COMERCIO"]
[null,"SPT7320071","DIBUJO DE ARQUITECTURA Y OBRAS CIVILES ",null,"STE1990997","OTROS PROGRAMAS EN EDUCACIÓN"]
[null,"SPT7326172","DIBUJO DE LA ARQUITECTURA Y OBRAS CIVILES ",null,"STE0126502","OTROS PROGRAMAS EN HOSTELERÍA , RESTAURANTES Y GASTRONOMÍA"]
[null,"SPT7321283","DIBUJO EN CONSTRUCCIÓN CIVIL ",null,"STE9190997","OTROS PROGRAMAS EN SALUD"]
[null,"SPT6116115","DIRECCIÓN DE ANIMACIÓN 3D Y VFX ",null,"STE7211406","PANADERÍA Y PASTELERÍA INDUSTRIAL"]
[null,"SPT2110145","DIRECCIÓN DE ARTES GRÁFICAS Y PUBLICITARIAS ",null,"STE7211407","PANIFICACIÓN"]
[null,"SPT4181114","DIRECCIÓN DE EMPRESAS ",null,"STE0121384","PASTELERÍA"]
[null,"SPT4181115","DIRECCIÓN DE EMPRESAS Y FINANZAS ",null,"STE7211386","PASTELERÍA Y TURISMO"]
[null,"SPT2111322","DIRECCIÓN DE PROYECTOS VISUALES Y FOTOGRAFÍA",null,"STE7320184","PLANEAMIENTO Y CONTROL DE PROYECTOS DE CONSTRUCCIÓN"]
[null,"SPT2151058","DIRECCIÓN MUSICAL ",null,"STE6116171","PLATAFORMAS Y SERVICIOS DE TECNOLOGÍAS DE LA INFORMACIÓN"]
[null,"SPT0130194","DIRECCIÓN TÉCNICA EN FÚTBOL ",null,"STE0220141","PREVENCIÓN DE LA SEGURIDAD Y SALUD EN EL TRABAJO"]
[null,"SPT2111041","DIRECCIÓN Y DISEÑO GRÁFICO ",null,"STE0226098","PREVENCIÓN DE RIESGO, SEGURIDAD Y SALUD OCUPACIONAL"]
[null,"SPT2111042","DIRECCIÓN Y DISEÑO PUBLICITARIO ",null,"STE7241427","PROCESAMIENTO DE MINERALES"]
[null,"SPT3221078","DIRECCIÓN Y GUIONIZACIÓN ",null,"STE7136099","PROCESOS METALÚRGICOS Y QUÍMICOS"]
[null,"SPT3221079","DIRECCIÓN Y PRODUCCIÓN EN RADIO ",null,"STE8116511","PRODUCCIÓN AGROPECUARIA"]
[null,"SPT3220164","DIRECCIÓN Y REALIZACIÓN DE CINE Y TELEVISIÓN ",null,"STE2136627","PRODUCCIÓN GRÁFICA"]
[null,"SPT3221080","DIRECCIÓN, REALIZACIÓN DE CINE Y TV ",null,"STE7211408","PRODUCCIÓN INDUSTRIAL DE VINOS, PISCOS Y OTROS PRODUCTOS AFINES"]
[null,"SPT2120191","DISEÑO DE AMBIENTES ",null,"STE3221370","PRODUCCIÓN RADIAL Y TELEVISIVA"]
[null,"SPT7130015","DISEÑO DE ESTRUCTURAS METÁLICAS Y DE CONSTRUCCIÓN ",null,"STE6126623","PROGRAMACIÓN DE SISTEMAS DE INFORMACIÓN"]
[null,"SPT2121043","DISEÑO DE INTERIORES ",null,"STE3131369","PSICOTERAPIA PSICOANALÍTICA"]
[null,"SPT2116565","DISEÑO DE MEDIOS INTERACTIVOS ",null,"STE4141367","PUBLICIDAD Y MEDIOS DIGITALES"]
[null,"SPT2121271","DISEÑO DE MODAS ",null,"STE7121415","REFRIGERACIÓN Y AIRE ACONDICIONADO"]
[null,"SPT2121272","DISEÑO DE MODAS Y MODISTERÍA INDUSTRIAL ",null,"STE7331429","SEGURIDAD MINERA E INDUSTRIAL"]
[null,"SPT2126103","DISEÑO DE PRENDAS DE VESTIR ",null,"STE0220203","SEGURIDAD Y SALUD EN EL TRABAJO"]
[null,"SPT2121423","DISEÑO DE PRODUCCIÓN E INNOVACIÓN TECNOLÓGICA",null,"STE7130205","SERVICIO DE MANTENIMIENTO DE EQUIPO PESADO"]
[null,"SPT2121044","DISEÑO DE PRODUCTO ",null,"STE0121387","SERVICIO DE RESTAURANTE Y BAR"]
[null,"SPT2130060","DISEÑO DE PRODUCTO Y ANIMACIÓN DIGITAL ",null,"STE0120048","SERVICIOS HOTELEROS Y COCINA"]
[null,"SPT2120075","DISEÑO DE PRODUCTOS DE MADERA ",null,"STE6130142","SISTEMAS DE TELECOMUNICACIONES DE VOZ Y DATOS"]
[null,"SPT6110214","DISEÑO DE SOFTWARE E INTEGRACIÓN DE SISTEMAS ",null,"STE2310106","TÉCNICO TRILINGÜE EN GESTIÓN EMPRESARIAL"]
[null,"SPT2110217","DISEÑO DE VIDEO JUEGOS Y ENTRETENIMIENTO DIGITAL ",null,"STE2211366","TEOLOGÍA PASTORAL"]
[null,"SPT2110078","DISEÑO DE VIDEOJUEGOS ",null,"STE7321445","TOPOGRAFÍA CIVIL Y MINERA"]
[null,"SPT2130059","DISEÑO E INNOVACIÓN INDUSTRIAL ",null,"STE7321444","TOPOGRAFÍA"]
[null,"SPT2121045","DISEÑO ESCENOGRÁFICO ",null,"STE0411460","TRANSPORTES TERRESTRES Y OPERACIÓN DE EQUIPOS PESADOS"]
[null,"SPT4146566","DISEÑO ESTRATÉGICO PARA LOS NEGOCIOS ",null,"STE8110033","VITICULTURA Y ENOLOGÍA"]
[null,"SPT2111046","DISEÑO GRÁFICO ",null,"STEAG99999","OTROS"]
[null,"SPT2110225","DISEÑO GRÁFICO DIGITAL "]
[null,"SPT2136567","DISEÑO GRÁFICO PUBLICITARIO "]
[null,"SPT2130085","DISEÑO GRÁFICO Y MULTIMEDIA "]
[null,"SPT2111047","DISEÑO GRÁFICO Y PUBLICIDAD DIGITAL "]
[null,"SPT2111048","DISEÑO GRÁFICO Y PUBLICITARIO "]
[null,"SPT2121049","DISEÑO INDUSTRIAL "]
[null,"SPT2111050","DISEÑO PUBLICITARIO "]
[null,"SPT2111051","DISEÑO TÉCNICO "]
[null,"SPT7231273","DISEÑO TEXTIL "]
[null,"SPT2111524","DISEÑO WEB & MULTIMEDIA"]
[null,"SPT2111052","DISEÑO WEB Y MULTIMEDIA "]
[null,"SPT2130086","DISEÑO Y DECORACIÓN DE INTERIORES "]
[null,"SPT2116600","DISEÑO Y DESARROLLO DE SIMULADORES Y VIDEOJUEGOS "]
[null,"SPT6126541","DISEÑO Y DESARROLLO DE SOFTWARE "]
[null,"SPT6126568","DISEÑO Y DESARROLLO DE SOFTWARE Y PRUEBAS DE SOLUCIONES MULTIPLATAFORMA "]
[null,"SPT6126569","DISEÑO Y DESARROLLO DE SOFTWARE Y SOLUCIONES DE INTELIGENCIA DE NEGOCIOS "]
[null,"SPT6126570","DISEÑO Y DESARROLLO DE SOFTWARE Y SOLUCIONES MÓVILES "]
[null,"SPT6126571","DISEÑO Y DESARROLLO DE SOFTWARE Y SOLUCIONES WEB "]
[null,"SPT6126572","DISEÑO Y DESARROLLO DE SOFTWARE Y TÉCNICAS DE HACKING ÉTICO "]
[null,"SPT2110143","DISEÑO Y DESARROLLO DE VIDEOJUEGOS "]
[null,"SPT2110216","DISEÑO Y DESARROLLO PARA MEDIOS DIGITALES "]
[null,"SPT6120185","DISEÑO Y DESARROLLO WEB "]
[null,"SPT2121625","DISEÑO Y FABRICACIÓN DE CALZADO"]
[null,"SPT2120180","DISEÑO Y GESTIÓN DE LA MODA "]
[null,"SPT7231274","DISEÑO Y PRODUCCIÓN DE TEXTILES "]
[null,"SPT7230084","DISEÑO Y PRODUCCIÓN TEXTIL "]
[null,"SPT6116079","DISEÑO Y PROGRAMACIÓN WEB "]
[null,"SPT1310116","EBANISTERÍA "]
[null,"SPT0141339","ECOLOGÍA TURÍSTICA "]
[null,"SPT3111168","ECONOMÍA EMPRESARIAL "]
[null,"SPT0141131","ECOTURISMO Y GESTIÓN AMBIENTAL "]
[null,"SPT7321284","EDIFICACIONES "]
[null,"SPT9999005","EDIFICACIONES Y OBRAS CIVILES"]
[null,"SPT1611017","EDUCACIÓN ARTÍSTICA "]
[null,"SPT1991022","EDUCACIÓN BÁSICA ALTERNATIVA "]
[null,"SPT1611018","EDUCACIÓN DANZA "]
[null,"SPT1211005","EDUCACIÓN EN COMPUTACIÓN E INFORMÁTICA "]
[null,"SPT1611019","EDUCACIÓN EN DANZA CLÁSICA "]
[null,"SPT1211006","EDUCACIÓN EN IDIOMAS - INGLÉS "]
[null,"SPT1411015","EDUCACIÓN ESPECIAL AUDICIÓN "]
[null,"SPT1411016","EDUCACIÓN ESPECIAL RETARDO "]
[null,"SPT1511014","EDUCACIÓN FÍSICA "]
[null,"SPT1111001","EDUCACIÓN INICIAL "]
[null,"SPT1111002","EDUCACIÓN INICIAL (INTERCULTURAL Y BILINGÜE) "]
[null,"SPT1611020","EDUCACIÓN MUSICAL "]
[null,"SPT1211007","EDUCACIÓN PARA EL TRABAJO "]
[null,"SPT1121003","EDUCACIÓN PRIMARIA "]
[null,"SPT1121004","EDUCACIÓN PRIMARIA (INTERCULTURAL Y BILINGÜE) "]
[null,"SPT1211008","EDUCACIÓN RELIGIOSA "]
[null,"SPT1211009","EDUCACIÓN SECUNDARIA - CIENCIA, TECNOLOGÍA Y AMBIENTE "]
[null,"SPT1211010","EDUCACIÓN SECUNDARIA - CIENCIAS SOCIALES "]
[null,"SPT1211011","EDUCACIÓN SECUNDARIA - COMUNICACIÓN "]
[null,"SPT1211012","EDUCACIÓN SECUNDARIA - MATEMÁTICA "]
[null,"SPT1211013","EDUCACIÓN SECUNDARIA TÉCNICA "]
[null,"SPT3111169","ELABORACIÓN Y EVALUACIÓN DE PROYECTOS "]
[null,"SPT7111226","ELECTRICIDAD "]
[null,"SPT7111227","ELECTRICIDAD INDUSTRIAL "]
[null,"SPT7116083","ELECTRICIDAD INDUSTRIAL CON MENCIÓN EN SERVICIO NAVAL "]
[null,"SPT7116589","ELECTRICIDAD INDUSTRIAL CON MENCIÓN EN SISTEMAS ELÉCTRICOS DE POTENCIA "]
[null,"SPT7110025","ELECTRICISTA INDUSTRIAL "]
[null,"SPT7121230","ELECTRÓNICA "]
[null,"SPT7121231","ELECTRÓNICA AERONÁUTICA "]
[null,"SPT7126170","ELECTRÓNICA CON MENCIÓN EN SERVICIO NAVAL "]
[null,"SPT7121232","ELECTRÓNICA DE MICROCOMPUTADORAS "]
[null,"SPT7121237","ELECTRÓNICA DE SISTEMAS COMPUTARIZADOS "]
[null,"SPT7121233","ELECTRÓNICA DE SISTEMAS INDUSTRIALES "]
[null,"SPT7121234","ELECTRÓNICA DIGITAL "]
[null,"SPT7121235","ELECTRÓNICA INDUSTRIAL "]
[null,"SPT7126125","ELECTRÓNICA INDUSTRIAL CON MENCIÓN EN AUTOMATIZACIÓN Y CONTROL INDUSTRIAL "]
[null,"SPT7121236","ELECTRÓNICA Y AUTOMATIZACIÓN INDUSTRIAL "]
[null,"SPT7120145","ELECTRÓNICO INDUSTRIAL "]
[null,"SPT7120109","ELECTROTECNIA "]
[null,"SPT7121228","ELECTROTECNIA INDUSTRIAL "]
[null,"SPT7126126","ELECTROTÉCNIA INDUSTRIAL CON MENCIÓN EN ENERGIA RENOVABLES EN EFICIENCIA ENERGÉTICA "]
[null,"SPT7126586","ELECTROTECNIA INDUSTRIAL CON MENCIÓN EN ENERGÍA RENOVABLES Y EFICIENCIA ENERGÉTICA "]
[null,"SPT9999006","ENFERMERIA"]
[null,"SPT9130036","ENFERMERÍA "]
[null,"SPT9130161","ENFERMERÍA PEDRIÁTICA "]
[null,"SPT9131327","ENFERMERÍA TÉCNICA "]
[null,"SPT9130044","ENFERMERÍA TÉCNICA INTERCULTURAL BILINGÜE AMAZÓNICA "]
[null,"SPT0136128","ENTRENAMIENTO DEPORTIVO "]
[null,"SPT0116078","ESTÉTICA, IMAGEN Y ESTILO "]
[null,"SPT7246179","EXPLORACIÓN Y EXPLOTACIÓN MINERA "]
[null,"SPT7240027","EXPLOTACIÓN DE MINAS "]
[null,"SPT7241265","EXPLOTACIÓN MINERA "]
[null,"SPT9171336","FARMACIA "]
[null,"SPT9170148","FARMACIA TÉCNICA "]
[null,"SPT9999007","FARMACIA TÉCNICA -DUAL"]
[null,"SPT4111176","FINANZAS "]
[null,"SPT9161329","FISIOTERAPIA Y REHABILITACIÓN "]
[null,"SPT9160195","FISIOTERAPIA Y REHABILITACIÓN FÍSICA "]
[null,"SPT8211317","FORESTAL "]
[null,"SPT8211318","FORESTAL (PARA ZONA DE SELVA) "]
[null,"SPT8210163","FORESTALES "]
[null,"SPT4110136","FORMACIÓN BANCARIA "]
[null,"SPT2111093","FOTOGRAFÍA "]
[null,"SPT2110197","FOTOGRAFÍA E IMAGEN DIGITAL "]
[null,"SPT2116574","FOTOGRAFÍA Y PRODUCCIÓN DE IMAGEN "]
[null,"SPT8111304","FRUTICULTURA "]
[null,"SPT8111305","FRUTICULTURA Y OLIVICULTURA "]
[null,"SPT0311354","FUERZAS ESPECIALES "]
[null,"SPT0120076","GASTRONOMÍA "]
[null,"SPT7211220","GASTRONOMÍA INDUSTRIAL "]
[null,"SPT0121132","GASTRONOMÍA Y ARTE CULINARIO "]
[null,"SPT9999008","GEODESIA Y TOPOGRAFIA"]
[null,"SPT5321266","GEOLOGÍA DE MINAS "]
[null,"SPT7321285","GEOMÁTICA "]
[null,"SPT4181116","GERENCIA "]
[null,"SPT4136177","GESTIÓN ADMINISTRATIVA "]
[null,"SPT4136184","GESTIÓN ADMINISTRATIVA CON MENCIÓN EN ADMINISTRACIÓN DE NEGOCIOS AGROPECUARIOS "]
[null,"SPT4136082","GESTIÓN ADMINISTRATIVA CON MENCIÓN EN SERVICIO NAVAL "]
[null,"SPT5210047","GESTIÓN AMBIENTAL "]
[null,"SPT5210123","GESTIÓN AMBIENTAL Y DESARROLLO SOSTENIBLE "]
[null,"SPT5210132","GESTIÓN AMBIENTAL Y RESPONSABILIDAD SOCIAL "]
[null,"SPT4131117","GESTIÓN COMERCIAL "]
[null,"SPT4136575","GESTIÓN COMERCIAL CON MENCIÓN EN ESPACIOS DE PUNTO DE VENTA "]
[null,"SPT4120085","GESTIÓN COMERCIAL DE PRODUCTOS Y SERVICIOS BANCARIOS Y FINANCIEROS "]
[null,"SPT9170223","GESTIÓN DE FARMACIAS "]
[null,"SPT7210025","GESTIÓN DE INDUSTRIAS ALIMENTARIAS "]
[null,"SPT7320146","GESTIÓN DE LA CONSTRUCCIÓN "]
[null,"SPT7320074","GESTIÓN DE LA CONSTRUCCIÓN CIVIL "]
[null,"SPT7230192","GESTIÓN DE LA EMPRESA DE MODA Y PRODUCCIONES "]
[null,"SPT7230145","GESTIÓN DE LA INDUSTRIA TEXTIL "]
[null,"SPT7236068","GESTIÓN DE LA MODA Y CONFECCIONES "]
[null,"SPT7236094","GESTIÓN DE LA PRODUCCIÓN DE PRENDAS DE VESTIR "]
[null,"SPT7321286","GESTIÓN DE LA PRODUCCIÓN EN LA INDUSTRIA DE LA CONSTRUCCIÓN "]
[null,"SPT7231276","GESTIÓN DE LA PRODUCCIÓN EN LA INDUSTRIA DE LAS CONFECCIONES "]
[null,"SPT4136038","GESTIÓN DE LOGÍSTICA "]
[null,"SPT4136596","GESTIÓN DE LOGÍSTICA CON MENCIÓN EN COMERCIO INTERNACIONAL "]
[null,"SPT4136595","GESTIÓN DE LOGÍSTICA CON MENCIÓN EN LA CADENA DE ABASTECIMIENTO "]
[null,"SPT4140052","GESTIÓN DE MARKETING Y VENTAS "]
[null,"SPT7231275","GESTIÓN DE MODAS Y CONFECCIONES "]
[null,"SPT4136576","GESTIÓN DE PRODUCCIÓN DE PRENDAS DE VESTIR "]
[null,"SPT4136594","GESTIÓN DE PRODUCCIÓN INDUSTRIAL "]
[null,"SPT4133977","GESTIÓN DE PROYECTOS "]
[null,"SPT8111306","GESTIÓN DE RECURSOS HÍDRICOS "]
[null,"SPT4180128","GESTIÓN DE RECURSOS HUMANOS "]
[null,"SPT9999009","GESTION DE REDES DE AGUA POTABLE Y AGUA RESIDUAL"]
[null,"SPT9196577","GESTIÓN DE SALUD Y SEGURIDAD EN EL TRABAJO "]
[null,"SPT6120205","GESTIÓN DE SISTEMAS DE INFORMACIÓN "]
[null,"SPT6130149","GESTIÓN DE TELECOMUNICACIONES Y TRÁNSITO AÉREO "]
[null,"SPT4136110","GESTIÓN DE TRANSPORTE Y DISTRIBUCIÓN "]
[null,"SPT4181118","GESTIÓN DEL EMPRENDIMIENTO "]
[null,"SPT0131726","GESTIÓN DEPORTIVA"]
[null,"SPT4130295","GESTIÓN LOGÍSTICA "]
[null,"SPT4130124","GESTIÓN LOGÍSTICA Y TRANSPORTE "]
[null,"SPT4170172","GESTIÓN PÚBLICA "]
[null,"SPT7231277","GESTIÓN TEXTIL "]
[null,"SPT4131119","GESTIÓN Y ADMINISTRACIÓN DE NEGOCIOS "]
[null,"SPT7136585","GESTIÓN Y MANTENIMIENTO DE MAQUINARIA INDUSTRIAL "]
[null,"SPT7136540","GESTIÓN Y MANTENIMIENTO DE MAQUINARIA PESADA "]
[null,"SPT0141340","GUÍA OFICIAL DE CAMINATA "]
[null,"SPT0141341","GUÍA OFICIAL DE MONTAÑA "]
[null,"SPT0141342","GUÍA OFICIAL DE TURISMO "]
[null,"SPT5226159","HIDROGRAFÍA "]
[null,"SPT8311180","HIDROGRAFÍA Y NAVEGACIÓN "]
[null,"SPT8121307","HORTICULTURA "]
[null,"SPT0121133","HOSTELERÍA "]
[null,"SPT0120160","HOTELERÍA Y TURISMO "]
[null,"SPT0121134","HOTELES Y RESTAURANTES "]
[null,"SPT7231278","INDUSTRIA DEL CUERO "]
[null,"SPT7231279","INDUSTRIA DEL VESTIDO "]
[null,"SPT7220208","INDUSTRIAL Y SISTEMAS "]
[null,"SPT9999010","INDUSTRIAS ALIMENTARIAS"]
[null,"SPT7211221","INDUSTRIAS ALIMENTARIAS "]
[null,"SPT7211222","INDUSTRIAS ALIMENTARIAS LÁCTEAS "]
[null,"SPT7211827","INDUSTRIAS DE ALIMENTOS Y BEBIDAS"]
[null,"SPT0311355","INFANTERÍA DE MARINA "]
[null,"SPT0141343","INFORMACIÓN TURÍSTICA "]
[null,"SPT6121196","INFORMÁTICA "]
[null,"SPT6126181","INFORMÁTICA EMPRESARIAL "]
[null,"SPT6116073","INGENIERÍA DE DESARROLLO DE JUEGOS "]
[null,"SPT6136067","INGENIERÍA DE REDES Y COMUNICACIONES "]
[null,"SPT6116065","INGENIERÍA DE SISTEMAS DE INFORMACIÓN "]
[null,"SPT6116064","INGENIERÍA DE SOFTWARE "]
[null,"SPT6131928","INGENIERÍA DE SONIDO"]
[null,"SPT6130025","INGENIERÍA DE TELECOMUNICACIONES "]
[null,"SPT6130183","INGENIERÍA DE TELEMÁTICA "]
[null,"SPT7140055","INSPECCIÓN Y MANTENIMIENTO AERONÁUTICO "]
[null,"SPT0311356","INTELIGENCIA "]
[null,"SPT2310112","INTERPRETACIÓN "]
[null,"SPT2311024","INTERPRETACIÓN DE IDIOMAS "]
[null,"SPT2151059","INTERPRETACIÓN MUSICAL "]
[null,"SPT2151056","INTERPRETE EN DANZA CLÁSICA "]
[null,"SPT0320139","INVESTIGACIÓN PRIVADA Y SEGURIDAD CIUDADANA "]
[null,"SPT9131328","INYECTABLES Y PRIMEROS AUXILIOS "]
[null,"SPT8121308","JARDINERÍA Y PAISAJISMO "]
[null,"SPT9151330","LABORATORIO CLÍNICO "]
[null,"SPT9156091","LABORATORIO CLÍNICO Y ANATOMÍA PATOLÓGICA "]
[null,"SPT7321287","LABORATORIO DE SUELOS, CONCRETO Y ASFALTO "]
[null,"SPT5311267","LABORATORIO QUÍMICO Y METALÚRGICO "]
[null,"SPT2210015","LITERATURA BÍBLICA "]
[null,"SPT3220186","LOCUCIÓN Y COMUNICACIÓN RADIAL Y TELEVISIVA "]
[null,"SPT4161151","LOGÍSTICA DEL COMERCIO INTERNACIONAL "]
[null,"SPT4130137","LOGÍSTICA INTEGRAL Y GESTIÓN COMERCIAL "]
[null,"SPT4130082","LOGÍSTICA INTEGRAL Y GESTIÓN DE OPERACIONES "]
[null,"SPT5221298","MANEJO DE CUENCAS Y GESTIÓN AMBIENTAL "]
[null,"SPT8216116","MANEJO FORESTAL "]
[null,"SPT0311357","MANIOBRAS "]
[null,"SPT7146108","MANTENIMIENTO AERONÁUTICO "]
[null,"SPT7141243","MANTENIMIENTO DE AERONAVES "]
[null,"SPT0310097","MANTENIMIENTO DE AERONAVES Y SUS SISTEMAS "]
[null,"SPT7130045","MANTENIMIENTO DE EQUIPO PESADO "]
[null,"SPT9191331","MANTENIMIENTO DE ESTABLECIMIENTOS DE SALUD "]
[null,"SPT7131244","MANTENIMIENTO DE ESTRUCTURAS "]
[null,"SPT0310096","MANTENIMIENTO DE ESTRUCTURAS DE AERONAVES "]
[null,"SPT7131245","MANTENIMIENTO DE MAQUINARIA "]
[null,"SPT7131246","MANTENIMIENTO DE MAQUINARIA DE PLANTA "]
[null,"SPT7131247","MANTENIMIENTO DE MAQUINARIA PESADA "]
[null,"SPT7132029","MANTENIMIENTO DE MAQUINARIA PESADA MINERA"]
[null,"SPT7130095","MANTENIMIENTO DE MAQUINARIA PESADA PARA CONSTRUCCIÓN "]
[null,"SPT0310094","MANTENIMIENTO DE MOTORES DE AERONAVES "]
[null,"SPT7141248","MANTENIMIENTO DE MOTORES, HÉLICES Y UNIDAD DE POTENCIA AUXILIAR "]
[null,"SPT8116643","MANTENIMIENTO DE PLANTAS AGROINDUSTRIALES "]
[null,"SPT7141249","MANTENIMIENTO DE VEHÍCULOS MOTORIZADOS Y EQUIPOS CONTRA INCENDIO "]
[null,"SPT0310095","MANTENIMIENTO ELECTRONICO DE AERONAVES "]
[null,"SPT7136140","MANTENIMIENTO INDUSTRIAL "]
[null,"SPT7130147","MANTENIMIENTO Y GESTIÓN DE EQUIPO PESADO "]
[null,"SPT7131250","MANTENIMIENTO Y OPERACIÓN DE ARMAMENTO Y EQUIPOS AUXILIARES "]
[null,"SPT7130157","MANTENIMIENTO Y OPERACIÓN DE MAQUINARIA PESADA "]
[null,"SPT7130158","MANTENIMIENTO Y REPARACIÓN DE MAQUINARIA PESADA "]
[null,"SPT7141251","MÁQUINAS NAVALES "]
[null,"SPT4141138","MARKETING "]
[null,"SPT4146593","MARKETING CON MENCIÓN EN COMERCIALIZACIÓN INTERNACIONAL "]
[null,"SPT4146147","MARKETING CON MENCIÓN EN ENTORNOS DIGITALES "]
[null,"SPT4146151","MARKETING CON MENCIÓN EN MEDIOS DIGITALES "]
[null,"SPT4140054","MARKETING DIGITAL "]
[null,"SPT4141139","MARKETING EMPRESARIAL "]
[null,"SPT4142130","MARKETING ESTRATÉGICO E INNOVACIÓN"]
[null,"SPT4141140","MARKETING INTEGRAL "]
[null,"SPT4140165","MARKETING INTERNACIONAL "]
[null,"SPT4141141","MARKETING VISUAL "]
[null,"SPT3220034","MARKETING Y COMUNICACIÓN DE LA MODA "]
[null,"SPT4140131","MARKETING Y GESTIÓN COMERCIAL "]
[null,"SPT4146580","MARKETING Y GESTIÓN DE EQUIPOS "]
[null,"SPT4146581","MARKETING Y GESTIÓN DE MEDIOS DIGITALES "]
[null,"SPT4146582","MARKETING Y GESTIÓN DE MODA "]
[null,"SPT4140207","MARKETING Y GESTIÓN DE VENTAS "]
[null,"SPT4146133","MARKETING Y NUEVAS TECNOLOGÍAS "]
[null,"SPT4141142","MARKETING Y PUBLICIDAD "]
[null,"SPT4141143","MARKETING Y VENTAS "]
[null,"SPT7130125","MATRICERÍA "]
[null,"SPT7130190","MECÁNICA "]
[null,"SPT7141252","MECÁNICA AERONÁUTICA "]
[null,"SPT7141253","MECÁNICA AERONAVAL "]
[null,"SPT7131254","MECÁNICA AGRÍCOLA "]
[null,"SPT7131255","MECÁNICA AUTOMOTRIZ "]
[null,"SPT7130070","MECÁNICA AUTOMOTRIZ Y AUTOTRÓNICA "]
[null,"SPT7146153","MECÁNICA DE AVIACIÓN "]
[null,"SPT7131483","MECÁNICA DE EQUIPO PESADO "]
[null,"SPT7131256","MECÁNICA DE MANTENIMIENTO "]
[null,"SPT7130202","MECÁNICA DE MAQUINARIA PESADA "]
[null,"SPT7131257","MECÁNICA DE PRODUCCIÓN "]
[null,"SPT7136092","MECÁNICA DE PRODUCCIÓN INDUSTRIAL "]
[null,"SPT7131258","MECÁNICA HIDRÁULICA "]
[null,"SPT7132231","MECÁNICA INDUSTRIAL"]
[null,"SPT7136152","MECÁNICA NAVAL "]
[null,"SPT7130201","MECÁNICA Y ELECTRÓNICA DE EQUIPOS PESADOS "]
[null,"SPT7136112","MECÁNICA Y ELECTRÓNICA DE VEHÍCULOS PESADOS "]
[null,"SPT7130145","MECÁNICO AUTOMOTRIZ "]
[null,"SPT7130195","MECÁNICO DE AUTOMOTORES DIESEL "]
[null,"SPT7136644","MECÁNICO DE BUSES Y CAMIONES "]
[null,"SPT7130215","MECÁNICO DE CONSTRUCCIONES METÁLICAS "]
[null,"SPT7130155","MECÁNICO DE MANTENIMIENTO "]
[null,"SPT7130225","MECÁNICO DE MANTENIMIENTO DE MAQUINARIA PESADA "]
[null,"SPT7130235","MECÁNICO DE MAQUINARIA AGRÍCOLA "]
[null,"SPT7130245","MECÁNICO DE MAQUINARIA PESADA "]
[null,"SPT7130255","MECÁNICO DE MÁQUINAS HERRAMIENTAS "]
[null,"SPT7130265","MECÁNICO ELECTRICISTA DE MANTENIMIENTO "]
[null,"SPT7136069","MECATRÓNICA "]
[null,"SPT7130053","MECATRÓNICA AUTOMOTRIZ "]
[null,"SPT7130285","MECATRÓNICA DE BUSES Y CAMIONES "]
[null,"SPT7130295","MECATRÓNICA DIGITAL "]
[null,"SPT7130212","MECATRÓNICA INDUSTRIAL "]
[null,"SPT7130315","MECATRÓNICO TEXTIL "]
[null,"SPT5211299","MEDIO AMBIENTE "]
[null,"SPT5211300","MEDIO AMBIENTE Y RECURSOS NATURALES "]
[null,"SPT2136173","MEDIOS DIGITALES Y PUBLICIDAD "]
[null,"SPT4141144","MERCADOTECNIA "]
[null,"SPT7130117","METALMECÁNICA "]
[null,"SPT7131268","METALURGIA "]
[null,"SPT5211181","METEOROLOGÍA "]
[null,"SPT6121197","MICROCOMPUTACIÓN E INFORMÁTICA "]
[null,"SPT7240119","MINERÍA "]
[null,"SPT7131269","MODELERÍA Y FUNDICIÓN "]
[null,"SPT4181163","MONEDA EXTRANJERA "]
[null,"SPT7131259","MOTORES "]
[null,"SPT7146155","MOTORES DE AVIACIÓN "]
[null,"SPT0310101","MOTORES NAVALES "]
[null,"SPT2151060","MÚSICA "]
[null,"SPT2151061","MÚSICA Y TECNOLOGÍA DE SONIDO "]
[null,"SPT2151062","MUSICOLOGÍA "]
[null,"SPT4160035","NEGOCIOS INTERNACIONALES "]
[null,"SPT9181322","NUTRICIÓN Y DIETÉTICA "]
[null,"SPT9181323","NUTRICIÓN Y TECNOLOGÍA DE LOS ALIMENTOS "]
[null,"SPT9141337","OBSTETRICIA "]
[null,"SPT8111224","OLIVICULTURA Y ELAIOTECNIA "]
[null,"SPT7131260","OPERACIÓN DE MÁQUINAS, HERRAMIENTAS Y CONTROL NUMÉRICO "]
[null,"SPT7240058","OPERACIÓN DE PLANTAS DE PROCESAMIENTO DE MINERALES "]
[null,"SPT7246583","OPERACIÓN DE PLANTAS Y PROCESAMIENTO DE MINERALES "]
[null,"SPT4111177","OPERACIONES BANCARIAS Y FINANCIERAS "]
[null,"SPT3211085","OPERACIONES DE COMUNICACIONES "]
[null,"SPT0141344","OPERACIONES DE VIAJES "]
[null,"SPT0311358","OPERACIONES ESPECIALES "]
[null,"SPT0141345","OPERACIONES HOTELERAS "]
[null,"SPT7240126","OPERACIONES MINERAS "]
[null,"SPT7136074","OPERACIONES QUÍMICAS Y METALÚRGICAS "]
[null,"SPT3222332","OPERADOR DE SISTEMAS DE COMUNICACIÓN"]
[null,"SPT9191332","ÓPTICA "]
[null,"SPT9151333","OPTOMETRÍA "]
[null,"SPT4181120","ORGANIZACIÓN Y ADMINISTRACIÓN DE EMPRESAS "]
[null,"SPT9161334","ORTOPEDIA "]
[null,"SPT1991023","OTRAS CARRERAS DE EDUCACIÓN "]
[null,"SPT4170996","OTROS PROGRAMAS EN ADMINISTRACIÓN PÚBLICA "]
[null,"SPT4190996","OTROS PROGRAMAS EN ADMINISTRACIÓN Y COMERCIO "]
[null,"SPT3150996","OTROS PROGRAMAS EN ANTROPOLOGÍA "]
[null,"SPT7310996","OTROS PROGRAMAS EN ARQUITECTURA Y URBANISMO "]
[null,"SPT2130996","OTROS PROGRAMAS EN ARTE "]
[null,"SPT2140996","OTROS PROGRAMAS EN ARTESANÍA Y MANUALIDADES "]
[null,"SPT9210996","OTROS PROGRAMAS EN ASISTENCIA A ADULTOS MAYORES Y DISCAPACITADOS "]
[null,"SPT9220996","OTROS PROGRAMAS EN ASISTENCIA A LA INFANCIA Y SERVICIOS PARA JÓVENES "]
[null,"SPT3230996","OTROS PROGRAMAS EN BIBLIOTECOLOGÍA Y ARCHIVO "]
[null,"SPT5110996","OTROS PROGRAMAS EN BIOLOGÍA "]
[null,"SPT6110996","OTROS PROGRAMAS EN CIENCIAS DE LA COMPUTACIÓN "]
[null,"SPT3220996","OTROS PROGRAMAS EN CIENCIAS DE LA COMUNICACIÓN "]
[null,"SPT5320996","OTROS PROGRAMAS EN CIENCIAS DE LA TIERRA "]
[null,"SPT3120996","OTROS PROGRAMAS EN CIENCIAS POLÍTICAS "]
[null,"SPT4180996","OTROS PROGRAMAS EN COMPETENCIAS LABORALES "]
[null,"SPT7320996","OTROS PROGRAMAS EN CONSTRUCCIÓN E INGENIERÍA CIVIL "]
[null,"SPT4110996","OTROS PROGRAMAS EN CONTABILIDAD E IMPUESTOS "]
[null,"SPT0130996","OTROS PROGRAMAS EN DEPORTE "]
[null,"SPT4220996","OTROS PROGRAMAS EN DERECHO PRIVADO "]
[null,"SPT4210996","OTROS PROGRAMAS EN DERECHO PÚBLICO "]
[null,"SPT2120996","OTROS PROGRAMAS EN DISEÑO INDUSTRIAL, DE MODAS E INTERIORES "]
[null,"SPT5210996","OTROS PROGRAMAS EN ECOLOGÍA Y MEDIO AMBIENTE "]
[null,"SPT3110996","OTROS PROGRAMAS EN ECONOMÍA "]
[null,"SPT1990996","OTROS PROGRAMAS EN EDUCACIÓN "]
[null,"SPT1610996","OTROS PROGRAMAS EN EDUCACIÓN ARTÍSTICA "]
[null,"SPT1410996","OTROS PROGRAMAS EN EDUCACIÓN ESPECIAL "]
[null,"SPT1510996","OTROS PROGRAMAS EN EDUCACIÓN FÍSICA "]
[null,"SPT1110996","OTROS PROGRAMAS EN EDUCACIÓN INICIAL "]
[null,"SPT0310996","OTROS PROGRAMAS EN EDUCACIÓN MILITAR Y DE DEFENSA "]
[null,"SPT1120996","OTROS PROGRAMAS EN EDUCACIÓN PRIMARIA "]
[null,"SPT1210996","OTROS PROGRAMAS EN EDUCACIÓN SECUNDARIA "]
[null,"SPT1310996","OTROS PROGRAMAS EN EDUCACIÓN SUPERIOR Y TECNOLÓGICA "]
[null,"SPT7110996","OTROS PROGRAMAS EN ELECTRICIDAD Y ENERGÍA "]
[null,"SPT7120996","OTROS PROGRAMAS EN ELECTRÓNICA Y AUTOMATIZACIÓN "]
[null,"SPT9130996","OTROS PROGRAMAS EN ENFERMERÍA "]
[null,"SPT5420996","OTROS PROGRAMAS EN ESTADÍSTICA "]
[null,"SPT9170996","OTROS PROGRAMAS EN FARMACIA "]
[null,"SPT2230996","OTROS PROGRAMAS EN FILOSOFÍA Y ETICA "]
[null,"SPT5330996","OTROS PROGRAMAS EN FÍSICA "]
[null,"SPT4120996","OTROS PROGRAMAS EN GESTIÓN FINANCIERA, ADMINISTRACIÓN BANCARIA Y SEGUROS "]
[null,"SPT4130996","OTROS PROGRAMAS EN GESTIÓN Y ADMINISTRACIÓN "]
[null,"SPT1910996","OTROS PROGRAMAS EN GESTIÓN Y CALIDAD EDUCATIVA "]
[null,"SPT2220996","OTROS PROGRAMAS EN HISTORIA Y ARQUEOLOGÍA "]
[null,"SPT8120996","OTROS PROGRAMAS EN HORTICULTURA "]
[null,"SPT0120996","OTROS PROGRAMAS EN HOTELERÍA, RESTAURANTES Y GASTRONOMÍA "]
[null,"SPT2310996","OTROS PROGRAMAS EN IDIOMAS "]
[null,"SPT7220996","OTROS PROGRAMAS EN INDUSTRIA Y PRODUCTOS TRANSFORMADOS (EXCEPTO ALIMENTOS, TEXTIL, AGRO, MINAS Y PETRÓLEO) "]
[null,"SPT7210996","OTROS PROGRAMAS EN INDUSTRIAS ALIMENTARIAS "]
[null,"SPT7330996","OTROS PROGRAMAS EN INGENIERÍA SANITARIA "]
[null,"SPT5430996","OTROS PROGRAMAS EN INVESTIGACIÓN OPERATIVA "]
[null,"SPT2320996","OTROS PROGRAMAS EN LINGÜÍSTICA Y LITERATURA "]
[null,"SPT4140996","OTROS PROGRAMAS EN MARKETING Y PUBLICIDAD "]
[null,"SPT5410996","OTROS PROGRAMAS EN MATEMÁTICA "]
[null,"SPT7130996","OTROS PROGRAMAS EN MECÁNICA Y METALÚRGICA "]
[null,"SPT9120996","OTROS PROGRAMAS EN MEDICINA "]
[null,"SPT7240996","OTROS PROGRAMAS EN MINERÍA Y EXTRACCIÓN "]
[null,"SPT2150996","OTROS PROGRAMAS EN MÚSICA Y ARTES ESCÉNICAS "]
[null,"SPT4160996","OTROS PROGRAMAS EN NEGOCIOS INTERNACIONALES "]
[null,"SPT9180996","OTROS PROGRAMAS EN NUTRICIÓN "]
[null,"SPT9140996","OTROS PROGRAMAS EN OBSTETRICIA "]
[null,"SPT9110996","OTROS PROGRAMAS EN ODONTOLOGÍA "]
[null,"SPT0110996","OTROS PROGRAMAS EN PELUQUERÍA Y TRATAMIENTOS DE BELLEZA "]
[null,"SPT3210996","OTROS PROGRAMAS EN PERIODISMO Y LOCUCIÓN "]
[null,"SPT8310996","OTROS PROGRAMAS EN PESCA "]
[null,"SPT8110996","OTROS PROGRAMAS EN PRODUCCIÓN AGRÍCOLA Y GANADERA "]
[null,"SPT7230996","OTROS PROGRAMAS EN PRODUCCIÓN TEXTIL Y CONFECCIONES "]
[null,"SPT0320995","OTROS PROGRAMAS EN PROTECCIÓN DE LAS PERSONAS Y DE LA PROPIEDAD "]
[null,"SPT3130996","OTROS PROGRAMAS EN PSICOLOGÍA "]
[null,"SPT5310996","OTROS PROGRAMAS EN QUÍMICA "]
[null,"SPT5220996","OTROS PROGRAMAS EN RECURSOS HÍDRICOS "]
[null,"SPT2210996","OTROS PROGRAMAS EN RELIGIÓN Y TEOLOGÍA "]
[null,"SPT9190996","OTROS PROGRAMAS EN SALUD "]
[null,"SPT0220996","OTROS PROGRAMAS EN SALUD Y PROTECCIÓN LABORAL "]
[null,"SPT0210996","OTROS PROGRAMAS EN SANEAMIENTO DE LA COMUNIDAD "]
[null,"SPT4150996","OTROS PROGRAMAS EN SECRETARIADO Y TRABAJO DE OFICINA "]
[null,"SPT0410996","OTROS PROGRAMAS EN SERVICIOS DE TRANSPORTE "]
[null,"SPT8210996","OTROS PROGRAMAS EN SILVICULTURA "]
[null,"SPT6120996","OTROS PROGRAMAS EN SISTEMAS Y CÓMPUTO "]
[null,"SPT3140996","OTROS PROGRAMAS EN SOCIOLOGÍA Y ESTUDIOS CULTURALES "]
[null,"SPT2110996","OTROS PROGRAMAS EN TÉCNICAS AUDIOVISUALES Y DE PRODUCCIÓN PARA MEDIOS DE COMUNICACIÓN "]
[null,"SPT9150996","OTROS PROGRAMAS EN TECNOLOGÍA DE DIAGNÓSTICO Y TRATAMIENTO MÉDICO "]
[null,"SPT6130996","OTROS PROGRAMAS EN TELECOMUNICACIONES "]
[null,"SPT9160996","OTROS PROGRAMAS EN TERAPIA Y REHABILITACIÓN "]
[null,"SPT9230996","OTROS PROGRAMAS EN TRABAJO SOCIAL "]
[null,"SPT7140996","OTROS PROGRAMAS EN VEHÍCULOS, BARCOS Y AERONAVES MOTORIZADAS "]
[null,"SPT8410996","OTROS PROGRAMAS EN VETERINARIA "]
[null,"SPT0140996","OTROS PROGRAMAS EN VIAJES, TURISMO Y ACTIVIDADES RECREATIVAS "]
[null,"SPT9121321","PARAMÉDICO "]
[null,"SPT0121135","PASTELERÍA "]
[null,"SPT1611021","PEDAGOGÍA DE LA INTERPRETACIÓN MUSICAL "]
[null,"SPT3211086","PERIODISMO "]
[null,"SPT3211087","PERIODISMO AUDIOVISUAL "]
[null,"SPT3211088","PERIODISMO DEPORTIVO "]
[null,"SPT3211089","PERIODISMO RADIAL Y TELEVISIVO "]
[null,"SPT3210198","PERIODISMO Y MEDIOS DIGITALES "]
[null,"SPT3216599","PERIODISMO Y NUEVOS MEDIOS "]
[null,"SPT8310061","PESCA Y NAVEGACIÓN "]
[null,"SPT4181164","PLANIFICACIÓN EMPRESARIAL "]
[null,"SPT4181165","PLANIFICACIÓN Y GESTIÓN DE DESARROLLO "]
[null,"SPT0311359","POLICÍA NAVAL "]
[null,"SPT0310102","PRACTICAJE FLUVIAL "]
[null,"SPT1510224","PREPARACIÓN FISICA DE ALTO RENDIMIENTO "]
[null,"SPT0226111","PREVENCIÓN, SEGURIDAD Y SALUD EN EL TRABAJO "]
[null,"SPT7210055","PROCESADOR INDUSTRIAL DE ALIMENTOS "]
[null,"SPT7210065","PROCESADOR INDUSTRIAL DE ALIMENTOS Y BEBIDAS "]
[null,"SPT6121198","PROCESAMIENTO DE DATOS "]
[null,"SPT7212433","PROCESOS DE LA INDUSTRIA ALIMENTARIA Y PRODUCTOS HIDROBIOLÓGICOS"]
[null,"SPT7220025","PROCESOS DE PRODUCCIÓN INDUSTRIAL "]
[null,"SPT7230095","PROCESOS DE PRODUCCIÓN TEXTIL "]
[null,"SPT7221217","PROCESOS INDUSTRIALES Y DE SISTEMAS "]
[null,"SPT5310035","PROCESOS QUÍMICOS "]
[null,"SPT7130168","PROCESOS QUÍMICOS METALÚRGICOS "]
[null,"SPT7131270","PROCESOS QUÍMICOS Y METALÚRGICOS "]
[null,"SPT8111309","PRODUCCIÓN AGRARIA "]
[null,"SPT8111310","PRODUCCIÓN AGRÍCOLA "]
[null,"SPT8111311","PRODUCCIÓN AGROPECUARIA "]
[null,"SPT7230025","PRODUCCIÓN DE CONFECCIONES "]
[null,"SPT3221081","PRODUCCIÓN DE ESPECTÁCULOS "]
[null,"SPT2111053","PRODUCCIÓN DE IMPRESOS "]
[null,"SPT3221082","PRODUCCIÓN DE PROGRAMAS DE TELEVISIÓN "]
[null,"SPT3221083","PRODUCCIÓN DE RADIO Y TELEVISIÓN "]
[null,"SPT8311296","PRODUCCIÓN EN PESQUERÍA "]
[null,"SPT2110375","PRODUCCIÓN GRÁFICA "]
[null,"SPT2151063","PRODUCCIÓN MUSICAL "]
[null,"SPT8111312","PRODUCCIÓN PECUARIA "]
[null,"SPT7231280","PRODUCCIÓN TEXTIL "]
[null,"SPT7210140","PRODUCCIÓN Y GESTIÓN INDUSTRIAL "]
[null,"SPT8111313","PRODUCCIÓN Y GESTIÓN PECUARIA "]
[null,"SPT3226119","PRODUCCIÓN Y REALIZACIÓN DE TELEVISIÓN, RADIO Y MEDIOS DIGITALES "]
[null,"SPT6121199","PROGRAMACIÓN "]
[null,"SPT0211067","PROMOCIÓN COMUNAL "]
[null,"SPT0140155","PROMOCIÓN DE TURISMO "]
[null,"SPT0141346","PROMOCIÓN DE TURISMO 1/ INCLUYE LA CARRERA DE PROMOCIÓN TURÍSTICA "]
[null,"SPT0140165","PROMOCIÓN TURÍSTICA "]
[null,"SPT9111324","PRÓTESIS DENTAL "]
[null,"SPT4141054","PUBLICIDAD "]
[null,"SPT4146114","PUBLICIDAD Y BRANDING "]
[null,"SPT4142534","PUBLICIDAD Y MARKETING DIGITAL"]
[null,"SPT4140227","PUBLICIDAD Y MEDIOS DIGITALES "]
[null,"SPT5311183","QUÍMICA INDUSTRIAL "]
[null,"SPT5310055","QUÍMICA TEXTIL "]
[null,"SPT9151335","RADIOLOGÍA "]
[null,"SPT8110065","RECURSOS HÍDRICOS "]
[null,"SPT6120255","REDES DE COMPUTADORAS Y COMUNICACIÓN DE DATOS "]
[null,"SPT6121200","REDES Y COMUNICACIÓN DE DATOS "]
[null,"SPT6121201","REDES Y COMUNICACIONES "]
[null,"SPT6110176","REDES Y COMUNICACIONES DE DATOS "]
[null,"SPT6121202","REDES Y SEGURIDAD INFORMÁTICA "]
[null,"SPT4141068","RELACIONES INSTITUCIONALES "]
[null,"SPT3141069","RELACIONES PÚBLICAS "]
[null,"SPT2211028","RELIGIÓN Y EDUCACIÓN PARA EL TRABAJO "]
[null,"SPT6121203","REPARACIÓN DE COMPUTADORAS "]
[null,"SPT6121204","REPARACIÓN DE COMPUTADORAS Y REDES "]
[null,"SPT3211090","REPORTERISMO "]
[null,"SPT7311294","RESTAURACIÓN DE MONUMENTOS HISTÓRICOS Y BIENES INMUEBLES "]
[null,"SPT2131034","RESTAURACIÓN Y CONSERVACIÓN DE OBRAS DE ARTE "]
[null,"SPT8111314","RIEGO DRENAJE "]
[null,"SPT8110066","RIEGO Y DRENAJE "]
[null,"SPT0210025","SALUD PÚBLICA "]
[null,"SPT0221218","SALUD Y SEGURIDAD OCUPACIONAL "]
[null,"SPT4151153","SECRETARIADO EJECUTIVO "]
[null,"SPT4151154","SECRETARIADO EJECUTIVO BILINGÜE "]
[null,"SPT4151155","SECRETARIADO EJECUTIVO COMPUTARIZADO "]
[null,"SPT4150063","SECRETARIADO EJECUTIVO Y GERENCIA "]
[null,"SPT4151156","SECRETARIADO EJECUTIVO Y GERENCIAL "]
[null,"SPT4151157","SECRETARIADO INTERNACIONAL EJECUTIVO "]
[null,"SPT6126590","SEGURIDAD DE LA INFORMACIÓN "]
[null,"SPT0311360","SEGURIDAD E INSTRUCCIÓN MILITAR "]
[null,"SPT0220045","SEGURIDAD INDUSTRIAL Y PREVENCIÓN DE RIESGOS "]
[null,"SPT6121205","SEGURIDAD INFORMÁTICA "]
[null,"SPT0226174","SEGURIDAD INTEGRAL "]
[null,"SPT0226086","SEGURIDAD Y PREVENCIÓN DE RIESGOS "]
[null,"SPT7240127","SEGURIDAD Y PREVENCIÓN EN LA INDUSTRIA Y MINERÍA "]
[null,"SPT0220075","SEGURIDAD, SALUD OCUPACIONAL Y MEDIO AMBIENTE "]
[null,"SPT0311361","SENSORES "]
[null,"SPT0316158","SENSORES DE AVIACIÓN "]
[null,"SPT0316154","SEÑALES "]
[null,"SPT0310103","SERVICIOS "]
[null,"SPT0121136","SERVICIOS HOTELEROS Y COCINA "]
[null,"SPT6136640","SISTEMA DE TELECOMUNICACIONES "]
[null,"SPT7121238","SISTEMAS AUTOMÁTICOS PROGRAMABLES "]
[null,"SPT6121206","SISTEMAS DE INFORMACIÓN "]
[null,"SPT6131211","SISTEMAS DE TELECOMUNICACIONES "]
[null,"SPT6121207","SISTEMAS INFORMÁTICOS PARA LA PRODUCTIVIDAD "]
[null,"SPT4130129","SISTEMAS INTEGRADOS DE GESTIÓN "]
[null,"SPT6116081","SISTEMAS Y ADMINISTRACIÓN DE REDES CON MENCIÓN EN SERVICIO NAVAL "]
[null,"SPT6110118","SISTEMAS Y COMPUTACIÓN "]
[null,"SPT6121208","SOFTWARE Y SISTEMAS "]
[null,"SPT7130375","SOLDADOR UNIVERSAL "]
[null,"SPT7130050","SOLDADURA INDUSTRIAL "]
[null,"SPT0316157","SONAR "]
[null,"SPT6121209","SOPORTE DE SISTEMAS Y REDES "]
[null,"SPT6120375","SOPORTE Y MANTENIMIENTO DE EQUIPOS DE COMPUTACIÓN "]
[null,"SPT7321288","SUELOS, CONCRETO Y ASFALTO "]
[null,"SPT7246139","SUPERVISIÓN DE EQUIPOS EN MINERÍA SUBTERRÁNEA "]
[null,"SPT4181166","SUPERVISIÓN DE OPERACIONES "]
[null,"SPT2151066","TEATRO Y TELEVISIÓN "]
[null,"SPT9170040","TÉCNICA EN FARMACIA "]
[null,"SPT9160049","TÉCNICA EN FISIOTERAPIA Y REHABILITACIÓN "]
[null,"SPT6131212","TÉCNICA EN INGENIERÍA DE SONIDOS "]
[null,"SPT6131213","TÉCNICA EN INGENIERÍA DE TELECOMUNICACIONES "]
[null,"SPT6131214","TÉCNICA EN INGENIERÍA DE TELEMÁTICA "]
[null,"SPT7131261","TÉCNICA EN INGENIERÍA MECÁNICA DE MANTENIMIENTO "]
[null,"SPT7131262","TÉCNICA EN INGENIERÍA MECÁNICA DE PRODUCCIÓN "]
[null,"SPT9150043","TÉCNICA EN LABORATORIO CLÍNICO "]
[null,"SPT4140178","TÉCNICA EN MERCADOTECNIA "]
[null,"SPT9140144","TÉCNICA EN OBSTETRICIA "]
[null,"SPT9152635","TÉCNICA EN OPTOMETRÍA"]
[null,"SPT9110087","TÉCNICA EN PRÓTESIS DENTAL "]
[null,"SPT9176101","TÉCNICAS DE FARMACIA "]
[null,"SPT6110081","TÉCNICAS DE INGENIERÍA DE SOFTWARE "]
[null,"SPT6136075","TÉCNICAS DE INGENIERÍA DE TELECOMUNICACIONES "]
[null,"SPT7111229","TÉCNICAS DE INGENIERÍA ELÉCTRICA "]
[null,"SPT7121239","TÉCNICAS DE INGENIERÍA ELECTRÓNICA "]
[null,"SPT7130395","TÉCNICAS DE INGENIERÍA MECÁNICA DE PRODUCCIÓN "]
[null,"SPT7240108","TÉCNICAS EN EXPLOTACIÓN MINERA "]
[null,"SPT6136063","TÉCNICAS EN INGENIERÍA DE SONIDO "]
[null,"SPT7120185","TÉCNICAS EN INGENIERÍA ELECTRÓNICA "]
[null,"SPT7130405","TÉCNICAS EN INGENIERÍA MECÁNICA DE MANTENIMIENTO "]
[null,"SPT6110228","TÉCNICO EN INGENIERÍA DE REDES Y COMUNICACIÓN "]
[null,"SPT4160187","TÉCNICO EN MERCADOTECNIA "]
[null,"SPT8111315","TECNOLOGÍA AGRÍCOLA "]
[null,"SPT7212736","TECNOLOGÍA ASEGURAMIENTO DE CALIDAD DE PRODUCTOS HIDROBIOLÓGICOS"]
[null,"SPT5311184","TECNOLOGÍA DE ANÁLISIS QUÍMICO "]
[null,"SPT7221219","TECNOLOGÍA DE LA PRODUCCIÓN "]
[null,"SPT7230115","TECNOLOGÍA DE PROCESOS DE PRODUCCIÓN DE PRENDAS DE VESTIR "]
[null,"SPT7230125","TECNOLOGÍA DEL DISEÑO Y DESARROLLO DE PRENDAS DE VESTIR "]
[null,"SPT7240125","TECNOLOGÍA EN PETRÓLEO Y REFINACIÓN "]
[null,"SPT7131263","TECNOLOGÍA MECÁNICA ELÉCTRICA "]
[null,"SPT3141070","TECNOLOGÍA PENITENCIARIA "]
[null,"SPT8311297","TECNOLOGÍA PESQUERA "]
[null,"SPT8316104","TECNOLOGÍA PESQUERA Y ACUÍCOLA "]
[null,"SPT5210045","TECNOLOGÍAS AMBIENTALES "]
[null,"SPT6120385","TECNOLOGÍAS DE LA INFORMACIÓN Y COMUNICACIÓN "]
[null,"SPT6131215","TELECOMUNICACIONES "]
[null,"SPT6110073","TELECOMUNICACIONES E INFORMÁTICA "]
[null,"SPT0310092","TELECOMUNICACIONES MILITARES "]
[null,"SPT6131216","TELEMÁTICA "]
[null,"SPT6136080","TELEMÁTICA CON MENCIÓN EN SERVICIO NAVAL "]
[null,"SPT2210035","TEOLOGÍA "]
[null,"SPT2211029","TEOLOGÍA - CATÓLICA "]
[null,"SPT2211031","TEOLOGÍA - FORMACIÓN RELIGIOSA "]
[null,"SPT2211030","TEOLOGÍA EVANGÉLICA "]
[null,"SPT2210173","TEOLOGÍA INVESTIGACIÓN SOCIO RELIGIOSA "]
[null,"SPT9166120","TERAPIA FÍSICA "]
[null,"SPT3131071","TERAPIA PSICOANALÍTICA "]
[null,"SPT7321289","TOPOGRAFÍA "]
[null,"SPT7240181","TOPOGRAFÍA SUPERFICIAL MINERA "]
[null,"SPT7321290","TOPOGRAFÍA SUPERFICIAL Y MINERA "]
[null,"SPT2310111","TRADUCCIÓN "]
[null,"SPT2311025","TRADUCCIÓN DE IDIOMAS "]
[null,"SPT2311026","TRADUCCIÓN E INTERPRETACIÓN "]
[null,"SPT2316584","TRADUCCIÓN E INTERPRETACIÓN DE IDIOMAS "]
[null,"SPT2310107","TRADUCCIÓN E INTERPRETACIÓN DE IDIOMAS(INGLÉS,FRANCÉS Y CASTELLANO) "]
[null,"SPT2310185","TRADUCCIÓN E INTERPRETACIÓN DE INGLÉS "]
[null,"SPT5220025","TRATAMIENTO DE AGUA "]
[null,"SPT0141347","TURISMO "]
[null,"SPT0141137","TURISMO Y HOTELERÍA "]
[null,"SPT4141145","VENTAS "]
[null,"SPT0141348","VIAJES Y TURISMO "]
[null,"SPT8111225","VITICULTURA Y ENOLOGÍA "]
[null,"SPT8111179","ZOOTECNIA "]
[null,"SPT8110114","ZOOTECNISTA "]
[null,"SPTAG99999","OTROS"]

{"sheet":"Prompt","index":3,"n_rows":39,"n_cols":4,"rows_kept":39,"cut":false,"hidden":false,"merged":[[1,3,2,5],[4,1,6,8],[9,1,10,8],[38,1,39,8]]}
[]
[null,null,null,"¡ATENCIÓN!"]
[]
[]
[null,"Para hacer uso de las funcionalidades de esta Cédula Electrónica debe habilitar macros"]
[]
[]
[]
[]
[null,"Si utiliza Excel 2000, 2002, 2003 siga el siguiente procedimiento:"]
[]
[]
[]
[]
[]
[]
[]
[]
[]
[]
[]
[]
[]
[]
[]
[]
[]
[]
[]
[]
[]
[]
[]
[]
[]
[]
[]
[]
[null,"Si utiliza Excel 2007 siga el siguiente procedimiento:"]